{"text_format":"3","workbook":"xlsx","n_sheets":4,"sheets":["selecteer hier uw barbecue","matrixen","Algemene verkoopsvoorwaarden","Reservatievoorstel"],"not_rendered":{"macros":1,"defined_names":5},"read":"whole","date_system":"1900"}

{"sheet":"selecteer hier uw barbecue","index":0,"n_rows":109,"n_cols":35,"rows_kept":109,"merged":[[12,6,12,10],[13,6,13,10],[14,6,14,10],[15,6,15,10],[16,6,16,10],[17,6,17,10],[18,6,18,10],[19,6,19,10],[20,6,20,10],[21,6,21,10],[22,6,22,10],[32,5,32,7],[35,5,35,7],[36,5,36,7],[37,5,37,7],[38,5,38,7],[39,5,39,7],[41,5,41,10],[42,5,42,7],[43,5,43,7],[87,10,87,17],[89,10,90,24]]}
[null,"Deze info is van: Feestzaal Katelijnenhof, Heirweg 172, 8800 Roeselare. Contacteer de zaakvoerder: 0475/618058 - info@katelijnenhof.be - web: www.katelijnenhof.be met foto's en volledige prijslijst."]
[]
[null,{"$f":"\"Rekenmodule barbecue. \" & matrixen!B1","v":"Rekenmodule barbecue. Prijzen geldig tot 31/03/2023"}]
[]
[{"$nulls":5},"kinderen",null,"kinderen",null,"kinderen"]
[{"$nulls":3},{"$f":"IF(TODAY()>AA11,\"Deze module is niet meer geldig.\",\"\")","v":""},null," 0 t.e.m. 2 j. 11 maand",null,"3 j. t.e.m. 5 j. 11 maand",null,"6 j, t.e.m. 11 jr. 11 maand"]
[null,"Totaal per volwassene:",null,{"$f":"SUM(D10:D982)","v":{"v":40.699999999999996,"d":"40.70"}},null,"0,00",null,{"$f":"ROUND(D7/3,2)","v":13.57},null,{"$f":"ROUND(D7/2,2)","v":20.35}]
[{"$nulls":5},"U kan ook voor de kinderen een kindermenu nemen ( zie een andere rekenmodule)"]
[]
[null,"MAAK STEEDS UW KEUZE in de gele vakken: (scroll naar beneden om meer gegevens in te vullen) Hierboven kunt u uw prijs volgen.",{"$nulls":6},"U vindt verder een overzicht van uw selectie"]
[null,"(klik op de gele balk, vervolgens op het pijltje rechts en scroll ev. naar beneden)",null,"prijs pp",null,"Gedetailleerde info","Selecteer hier uw hapjes:",null,{"$f":"COUNTA(G13:K23)","v":0},"hapjes geselecteerd.",{"$nulls":16},{"$f":"matrixen!B1","v":"Prijzen geldig tot 31/03/2023"}]
[]
[null,"Maak in dit vak uw keuze voor het aperitief",null,{"$f":"VLOOKUP(B13,matrixen!B11:I19,8,FALSE)","v":{"v":0,"d":"0.00"}},null,{"$f":"HLOOKUP($B$13,matrixen!$T$14:$AB$28,2,FALSE)","v":0},{"$nulls":20},{"$f":"matrixen!B11","v":"Maak in dit vak uw keuze voor het aperitief"}]
[null,"Maak in dit vak uw keuze voor het aperitief",{"$nulls":3},{"$f":"HLOOKUP($B$13,matrixen!$T$14:$AB$28,3,FALSE)","v":0},{"$nulls":20},{"$f":"matrixen!B12","v":"1 aperitief per persoon"}]
[null,{"$f":"\"U selecteerde tot nu \" & COUNTA(G13:K23)& \" hapjes.\"","v":"U selecteerde tot nu 0 hapjes."},null,{"$f":"IF(IF(B13=matrixen!N14,('selecteer hier uw barbecue'!I11-4)*matrixen!I47,I11*matrixen!I47)<0,0,IF(B13=matrixen!N14,('selecteer hier uw barbecue'!I11-4)*matrixen!I47,I11*matrixen!I47))","v":{"v":0,"d":"0.00"}},null,{"$f":"HLOOKUP($B$13,matrixen!$T$14:$AB$28,4,FALSE)","v":0},{"$nulls":20},{"$f":"matrixen!B13","v":"2 aperitieven per persoon"}]
[null,{"$f":"IF(B13=matrixen!N14,\"U koos receptie E en daar zijn 4 hapjes inbegrepen. Selecteer er dus zeker 4!\",\"\")","v":""},{"$nulls":3},{"$f":"HLOOKUP($B$13,matrixen!$T$14:$AB$28,5,FALSE)","v":0},{"$nulls":20},{"$f":"matrixen!B14","v":"Receptie E"}]
[{"$nulls":5},{"$f":"HLOOKUP($B$13,matrixen!$T$14:$AB$28,6,FALSE)","v":0},{"$nulls":20},{"$f":"matrixen!B15","v":"Receptie A"}]
[{"$nulls":5},{"$f":"HLOOKUP($B$13,matrixen!$T$14:$AB$28,7,FALSE)","v":0},{"$nulls":20},{"$f":"matrixen!B16","v":0}]
[null,"Indien een genodigde een extra aperitief bestelt of een aperitief wenst die niet in de prijs begrepen is dan:",{"$nulls":3},{"$f":"HLOOKUP($B$13,matrixen!$T$14:$AB$28,8,FALSE)","v":0},{"$nulls":20},{"$f":"matrixen!B17","v":0}]
[null,"De gast die een extra aperitief bestelt betaalt deze zelf",{"$nulls":3},{"$f":"HLOOKUP($B$13,matrixen!$T$14:$AB$28,9,FALSE)","v":0},{"$nulls":20},{"$f":"matrixen!B18","v":0}]
[null,"De gast die een extra aperitief bestelt betaalt deze zelf",{"$nulls":3},{"$f":"HLOOKUP($B$13,matrixen!$T$14:$AB$28,10,FALSE)","v":0},{"$nulls":20},{"$f":"matrixen!B19","v":0}]
[null,"De gast die niet inbegrepen aperitief bestelt betaalt deze zelf (vb: sterke drank)",{"$nulls":3},{"$f":"HLOOKUP($B$13,matrixen!$T$14:$AB$28,11,FALSE)","v":0}]
[null,"Alle extra aperitief komt op de algemene rekening.",{"$nulls":3},{"$f":"HLOOKUP($B$13,matrixen!$T$14:$AB$28,12,FALSE)","v":0},{"$nulls":20},{"$f":"matrixen!B23","v":"Schuimwijn van het huis (reeds inbegrepen)"}]
[null,"Let op: indien slecht weer (vanaf 5 Beaufort of bij hevige neerslag) kunnen wij beslissen om het vlees",{"$nulls":3},{"$f":"HLOOKUP($B$13,matrixen!$T$14:$AB$28,13,FALSE)","v":0},{"$f":"IF(F20=\"tapenades\", matrixen!AM28,\"\")","v":""},{"$nulls":19},{"$f":"matrixen!B24","v":"Cava"}]
[null," te bakken in de keuken binnen. We doen er echter alles aan om de barbecue buiten te laten doorgaan.",{"$nulls":3},{"$f":"HLOOKUP($B$13,matrixen!$T$14:$AB$28,14,FALSE)","v":0},{"$nulls":20},{"$f":"matrixen!B25","v":"Champagne"}]
[{"$nulls":5},{"$f":"HLOOKUP($B$13,matrixen!$T$14:$AB$28,15,FALSE)","v":0},{"$nulls":20},{"$f":"matrixen!B26","v":0}]
[]
[null,"Stel zelf uw barbecue samen!"]
[null,"In de barbecues zijn steeds groenten voorzien,  koude aardappelen en/of aardappel in de pel. Ook de sausjes zijn inbegrepen.",{"$nulls":24},{"$f":"matrixen!B44","v":"Maak hier uw keuze voor extra hapjes bij het aperitief"}]
[null,"Afhankelijk van de soort ingrediënten die u kiest, verandert de prijs van de barbecue. De volwassenen verkrijgen steeds 5 verschillende soorten. De kinderen 3.",{"$nulls":24},{"$f":"matrixen!B45","v":"Nootjes, chips en zoutkoekjes zoveel u wenst,  per pers."}]
[{"$nulls":26},{"$f":"matrixen!B46","v":"Rauwe groenten (wortel, bloemkool, cocktailsaus) prijs per persoon:"}]
[null,"Kies hier eerst uw aardappelbereiding",{"$nulls":3},{"$f":"\"Als voorgerecht kunt u een halve kreeft kiezen. Dit telt als 2 soorten vis en er is een extra suppl. Van € \"&matrixen!H133&\",00\"","v":"Als voorgerecht kunt u een halve kreeft kiezen. Dit telt als 2 soorten vis en er is een extra suppl. Van € 5,00"},{"$nulls":20},{"$f":"matrixen!B47","v":"aperitiefglaasjes per stuk"}]
[null,"Aardappel in de pel",null,{"$f":"VLOOKUP(B33,matrixen!B100:G103,6,FALSE)","v":"inbegrepen"},null,"Wij wensen geen kreeft",null,null,{"$f":"IF(F33=AA40,2,0)","v":0},{"$nulls":8},{"$f":"IF(F33=matrixen!H132,matrixen!H133,0)","v":0},{"$nulls":8},{"$f":"matrixen!B48","v":"aperitiefglaasjes per stuk"}]
[null,"Aardappel in de pel",{"$nulls":24},{"$f":"matrixen!B49","v":"aperitiefglaasjes per stuk"}]
[null,"Selecteer hier de samenstelling van uw barbecue.  Indien u bij onderstaande lijst blijft, kost de barbecue:",null,{"$f":"matrixen!B133","v":{"v":36.9,"d":"36.90"}},null,{"$f":"\"Selecteert u één of meer van onderstaande specialiteiten, is er een supplement van \"&matrixen!E133&\" euro pp t.o.v. de basisprijs\"","v":"Selecteert u één of meer van onderstaande specialiteiten, is er een supplement van 6 euro pp t.o.v. de basisprijs"},{"$nulls":10},{"$f":"IF(AND(F36<>\"\",F36<> matrixen!E$112),1,0)","v":0},{"$f":"IF(Q35+Q36+Q37+Q38+Q39>0,matrixen!E133,0)","v":0},{"$nulls":8},{"$f":"matrixen!B50","v":0}]
[1,"Kies uit deze vleesspecialiteiten",{"$f":"IF(AND(B36 <>\"\",B36<> matrixen!B$112),1,0)","v":0},null,1,"supp.  visgerechten / rund",{"$nulls":3},"U mag tegelijk ook ",{"$nulls":6},{"$f":"IF(AND(F37<>\"\",F37<> matrixen!E$112),1,0)","v":0},{"$nulls":9},{"$f":"matrixen!B51","v":"wachtbordje met vispasteitje"}]
[2,"Kies uit deze vleesspecialiteiten",{"$f":"IF(AND(B37 <>\"\",B37<> matrixen!B$112),1,0)","v":0},null,2,"supp.  visgerechten / rund",{"$nulls":3},"uit de vorige categorie kiezen",{"$nulls":6},{"$f":"IF(AND(F38<>\"\",F38<> matrixen!E$112),1,0)","v":0},{"$nulls":9},{"$f":"matrixen!B52","v":"wachtbordje van reuzentoost met gerookte zalm"}]
[3,"Kies uit deze vleesspecialiteiten",{"$f":"IF(AND(B38 <>\"\",B38<> matrixen!B$112),1,0)","v":0},null,3,"supp.  visgerechten / rund",{"$nulls":10},{"$f":"IF(AND(F39<>\"\",F39<> matrixen!E$112),1,0)","v":0},{"$nulls":9},{"$f":"matrixen!B53","v":"wachtbordje van lauw slaatje met gerookte zalm en scampi's"}]
[4,"Kies uit deze vleesspecialiteiten",{"$f":"IF(AND(B39 <>\"\",B39<> matrixen!B$112),1,0)","v":0},{"$f":"IF(R33>0,R33+matrixen!E133,R35)","v":{"v":0,"d":"0.00"}},4,"supp.  visgerechten / rund",{"$nulls":10},{"$f":"IF(AND(F40<>\"\",F40<> matrixen!E$112),1,0)","v":0},{"$nulls":9},"Wij wensen geen kreeft"]
[5,"Kies uit deze vleesspecialiteiten",{"$f":"IF(AND(B40 <>\"\",B40<> matrixen!B$112),1,0)","v":0},null,5,"supp.  visgerechten / rund",{"$nulls":20},{"$f":"matrixen!H132","v":"1/2 warme kreeft i.p.v. 2 andere soorten"},{"$nulls":3},{"$f":"IF($D$39>0,AF40,\"\")","v":""},{"$f":"matrixen!E121","v":"U mag 2 warme sausen kiezen als u ook vis of rund kiest!"}]
[null,"Kies uit deze vleesspecialiteiten",{"$nulls":3},"supp.  visgerechten / rund",{"$nulls":24},"",{"$f":"matrixen!E122","v":"bearnaise"}]
[null,{"$f":"IF(C36+C37+C38+C39+C40+Q35+Q36+Q37+Q38+Q39+G4+I33>5,\"U koos meer dan 5 soorten, er wordt een meerpijs gerekend.\",IF(C36+C37+C38+C39+C40+Q35+Q36+Q37+Q38+Q39+G4+I33=5,\"U koos nu 5 gerechten. Indien gewenst kunt u nog steeds wijzigen\",\"Gelieve 5 soorten te selecteren\"))","v":"Gelieve 5 soorten te selecteren"},null,{"$f":"IF(C36+C37+C38+C39+C40+Q35+Q36+Q37+Q38+Q39+G4+I33>5,(C36+C37+C38+C39+C40+Q35+Q36+Q37+Q38+Q39+G4+I33-5)*matrixen!G105,0)","v":{"v":0,"d":"0.00"}},null,{"$f":"\"Er zijn 2 warme sausen inbegrepen als u ook vis of rund kiest! Anders is er een supplement van € \" & matrixen!G106","v":"Er zijn 2 warme sausen inbegrepen als u ook vis of rund kiest! Anders is er een supplement van € 2,5"},{"$nulls":20},{"$f":"matrixen!B100","v":"Koude aardappelen"},{"$nulls":3},"",{"$f":"matrixen!E123","v":"romige portosaus"}]
[{"$nulls":3},{"$f":"IF(AND(OR(F43<>0,F44<>0),D39=0),matrixen!G106,0)","v":{"v":0,"d":"0.00"}},{"$nulls":22},{"$f":"matrixen!B101","v":"Aardappel in de pel"},{"$nulls":3},"",{"$f":"matrixen!E124","v":"pepersaus"}]
[null,"Selecteer hier uw formule van de dranken tijdens de barbecue.",{"$nulls":24},{"$f":"matrixen!B102","v":"1/2 koude aardappelen en 1/2 aardappel in de pel"},{"$nulls":3},"",{"$f":"matrixen!E125","v":"mosterd en look,"}]
[null,"Huiswijn, bieren en frisdranken als forfait",null,{"$f":"VLOOKUP(B45,matrixen!B139:M141,12,FALSE)","v":{"v":3.8,"d":"3.80"}},{"$nulls":22},{"$f":"matrixen!B103","v":"frietjes (supplement)"},{"$nulls":3},"",{"$f":"matrixen!E126","v":"champignonroomsaus"}]
[null,"Huiswijn, bieren en frisdranken als forfait",{"$nulls":28},"",{"$f":"matrixen!E127","v":"kreeftsaus met groentebrunoise"}]
[{"$nulls":5},"extra info",{"$nulls":20},{"$f":"matrixen!B112","v":"Kies uit deze vleesspecialiteiten"},{"$nulls":3},"",{"$f":"matrixen!E128","v":"kreeftsaus zonder groenten"}]
[null,"Selecteer hier uw dessert.",{"$nulls":24},{"$f":"matrixen!B113","v":"- Worst"},{"$nulls":3},"",{"$f":"matrixen!E129","v":"saffraansaus"}]
[null,"Nog geen dessert geselecteerd",null,{"$f":"VLOOKUP(B49,dessert,8,FALSE)","v":{"v":0,"d":"0.00"}},null,{"$f":"VLOOKUP($B$49,dessert,10,FALSE)","v":0},{"$nulls":20},{"$f":"matrixen!B114","v":"- Kippenboutjes"},{"$nulls":3},"",{"$f":"matrixen!E130","v":"bieslooksaus"}]
[null,"Nog geen dessert geselecteerd",{"$nulls":3},{"$f":"VLOOKUP($B$49,dessert,11,FALSE)","v":0},{"$nulls":20},{"$f":"matrixen!B115","v":"- Gemarineerde kotelet  "}]
[null,{"$f":"IF(B49=matrixen!B147,\"Kies hier nu een aantal dessertjes. 4 zijn reeds inbegrepen. Extra aan € \" & matrixen!I143&\",00/stuk. U selecteerde er tot nu: \"&COUNTA(B52:B58),\"\")","v":""},{"$nulls":3},{"$f":"VLOOKUP($B$49,dessert,12,FALSE)","v":0},{"$nulls":20},{"$f":"matrixen!B116","v":"- Lamskoteletjes "}]
[{"$nulls":5},{"$f":"VLOOKUP($B$49,dessert,13,FALSE)","v":0},{"$nulls":20},{"$f":"matrixen!B117","v":"- Varkensbrochet"}]
[{"$nulls":5},{"$f":"VLOOKUP($B$49,dessert,14,FALSE)","v":0},{"$nulls":20},{"$f":"matrixen!B118","v":"-  Kasselrib    "}]
[{"$nulls":5},{"$f":"VLOOKUP($B$49,dessert,15,FALSE)","v":0},{"$nulls":20},{"$f":"matrixen!B119","v":"- Ribbetjes"}]
[{"$nulls":3},{"$f":"IF(COUNTA(B52:B58)*matrixen!I143 - IF(B49=matrixen!B147,matrixen!I143*4,0)<0,0,COUNTA(B52:B58)*matrixen!I143 - IF(B49=matrixen!B147,matrixen!I143*4,0))","v":{"v":0,"d":"0.00"}},null,{"$f":"IF(D55>0,\"U selecteerde meer dan 4 stuks dessert. Vandaar het supplement.\",\"\")","v":""},{"$nulls":20},{"$f":"matrixen!B120","v":"- Worst"}]
[{"$nulls":5},{"$f":"IF(AND(D55>0,B49<>matrixen!B147),\"U moet de selectie links wissen. U koos geen dessertbord.\",\"\")","v":""},{"$nulls":20},{"$f":"matrixen!B121","v":"- Kippenboutjes"}]
[]
[{"$nulls":3},{"$f":"VLOOKUP($B$62,matrixen!$A$176:$P$178,15,FALSE)","v":{"v":0,"d":"0.00"}},{"$f":"VLOOKUP($B$62,matrixen!$A$176:$P$178,16,FALSE)","v":"direct afrekenen"},"Vegetariërs: ","nee","Speciale dieten: ","nee","Halal bereidingen: ","nee",{"$nulls":16},{"$f":"matrixen!E112","v":"supp.  visgerechten / rund"}]
[null,"Selecteer hier uw koffie",{"$nulls":25},{"$f":"matrixen!E113","v":"- Brochette met gepelde scampi's"}]
[null,"Nog geen keuze gemaakt",null,{"$f":"VLOOKUP(B60,matrixen!B169:I172,8,FALSE)","v":{"v":0,"d":"0.00"}},null,"Feest met discobar: ","nee","Allergenen: ","nee",{"$f":"IF($I$60=\"ja\",matrixen!A182,\"\")","v":""},{"$nulls":17},{"$f":"matrixen!E114","v":"- Stukje zalm en papillotte"}]
[null,"Nog geen keuze gemaakt",null,{"$f":"SUM(C72:C75)","v":0},null,null,{"$f":"IF(G60=\"ja\",matrixen!A186,\"\")","v":""},null,null,{"$f":"IF($I$60=\"ja\",matrixen!A183,\"\")","v":""},{"$nulls":17},{"$f":"matrixen!E115","v":"- Stukje victoriabaarsfilet met fijne kruiden en papillotte"}]
[null,"Elke gast die na de maaltijd een drankje bestelt rekent direct af aan de bar",{"$nulls":4},"Keuze achtergrondmuziek:","Geen voorkeur",{"$nulls":19},{"$f":"matrixen!E116","v":"- Forel met fijne groenten en papillotte"}]
[null,"Elke gast die na de maaltijd een drankje bestelt rekent direct af aan de bar",{"$nulls":25},{"$f":"matrixen!E117","v":"- Witte zalm in een jasje van ham"}]
[{"$nulls":4},"Eventuele datum van het feest:",null,null,"Overzicht van uw selectie:",{"$nulls":19},{"$f":"matrixen!E118","v":"- Côte à l’os"}]
[{"$nulls":5},"Het exacte aantal personen en de tafelschikking dient ons meegedeeld te worden de vrijdag van het weekend voordien.",null,{"$f":"IF(B13=matrixen!B11,\"\",B13)","v":""},{"$nulls":3},{"$f":"D13","v":{"v":0,"d":"0.00"}},{"$nulls":14},{"$f":"matrixen!B139","v":"Huiswijn, bieren en frisdranken als forfait"},{"$f":"matrixen!E119","v":"- Steak"}]
[{"$nulls":4},"geraamd aantal volwassenen:",10,null,{"$f":"IF(L66>0,B88,\"\")","v":""},null,{"$f":"IF(L66>0,\"geldt alleen bij recepties!!!\",\"\")","v":""},null,{"$f":"D88","v":{"v":0,"d":"0.00"}},{"$nulls":14},{"$f":"matrixen!B140","v":"Domaine Joel Delauny Touraine  en/of Château Reynier, Bordeaux superieur,  bieren en frisdranken"}]
[{"$nulls":4},"geraamd aantal kinderen 6 j. t.e.m. 11 jr. 11 maand:",{"$nulls":21},{"$f":"matrixen!B141","v":0}]
[{"$nulls":4},"geraamd aantal kinderen 3 j. t.e.m. 5 j. 11 maand:"]
[{"$nulls":4},"geraamd aantal kinderen  0 t.e.m. 2 j. 11 maand:",null,null,{"$f":"IF(L69>0,B33,\"\")","v":"Aardappel in de pel"},{"$nulls":3},{"$f":"D33","v":"inbegrepen"},{"$nulls":14},{"$f":"matrixen!B142","v":0},{"$nulls":7},"matrix:"]
[null,"Late night snacks:",{"$nulls":5},"groenten en sausen",{"$nulls":3},"inbegrepen",{"$nulls":14},{"$f":"matrixen!B143","v":"supplement per stukje gebak:"},{"$nulls":6},{"$f":"matrixen!M22","v":"Roomijs "},{"$f":"IF($B$49=matrixen!$B$147,'selecteer hier uw barbecue'!AH70,\"\")","v":""}]
[{"$nulls":4},"uur van aankomst:",{"$nulls":21},{"$f":"matrixen!B144","v":0},{"$nulls":6},{"$f":"matrixen!M23","v":"Bruine chocolademousse"},{"$f":"IF($B$49=matrixen!$B$147,'selecteer hier uw barbecue'!AH71,\"\")","v":""}]
[null,null,{"$f":"IFERROR(VLOOKUP(B71,matrixen!$A$301:$E$305,5,FALSE),0)","v":0},null,"aan tafel om:",{"$nulls":6},{"$f":"F43","v":0},{"$nulls":14},{"$f":"matrixen!B145","v":"Nog geen dessert geselecteerd"},{"$nulls":6},{"$f":"matrixen!M24","v":"Pasteis de nata"},{"$f":"IF($B$49=matrixen!$B$147,'selecteer hier uw barbecue'!AH72,\"\")","v":""}]
[null,null,{"$f":"IFERROR(VLOOKUP(B72,matrixen!$A$301:$E$305,5,FALSE),0)","v":0},{"$nulls":8},{"$f":"F44","v":0},{"$nulls":14},{"$f":"matrixen!B146","v":"IJstaart ambachtelijk, speciale vorm, smaak naar keuze"},{"$nulls":6},{"$f":"matrixen!M25","v":"Chocoladebavarois"},{"$f":"IF($B$49=matrixen!$B$147,'selecteer hier uw barbecue'!AH73,\"\")","v":""}]
[null,null,{"$f":"IFERROR(VLOOKUP(B73,matrixen!$A$301:$E$305,5,FALSE),0)","v":0},null,"Uw naam:",null,null,{"$f":"IF(B36=matrixen!$B$112,\"\",B36)","v":""},null,{"$f":"IF(F36=matrixen!$E$112,\"\",F36)","v":""},{"$nulls":16},{"$f":"matrixen!B147","v":"Stel hieronder uw mini dessertbordje samen met minstens 4 dessertjes"},{"$nulls":6},{"$f":"matrixen!M26","v":"Miserable"},{"$f":"IF($B$49=matrixen!$B$147,'selecteer hier uw barbecue'!AH74,\"\")","v":""}]
[null,"Keuze mogelijkheden:",{"$f":"IFERROR(VLOOKUP(B74,matrixen!$A$301:$E$305,5,FALSE),0)","v":0},null,"Adres:",null,null,{"$f":"IF(B37=matrixen!$B$112,\"\",B37)","v":""},null,{"$f":"IF(F37=matrixen!$E$112,\"\",F37)","v":""},{"$nulls":16},{"$f":"matrixen!B148","v":"Coupe met vers fruit en verse slagroom."},{"$nulls":6},{"$f":"matrixen!M27","v":"glaasje fruitsla met perensorbet"},{"$f":"IF($B$49=matrixen!$B$147,'selecteer hier uw barbecue'!AH75,\"\")","v":""}]
[null,{"$f":"matrixen!A301 & \" aan \" & matrixen!E301 & \" euro\"","v":"Croque uit het vuistje aan 2,8 euro"},null,null,"Stad:",null,null,{"$f":"IF(B38=matrixen!$B$112,\"\",B38)","v":""},null,{"$f":"IF(F38=matrixen!$E$112,\"\",F38)","v":""},{"$nulls":16},{"$f":"matrixen!B149","v":"Aardbeiensoepje met sinaasappel in seizoen"},{"$nulls":6},{"$f":"matrixen!M28","v":"Witte chocolademousse "},{"$f":"IF($B$49=matrixen!$B$147,'selecteer hier uw barbecue'!AH76,\"\")","v":""}]
[null,{"$f":"matrixen!A302 & \" aan \" & matrixen!E302 & \" euro\"","v":"Pizza Margherita aan 4,5 euro"},null,null,"Tel nr:",null,null,{"$f":"IF(B39=matrixen!$B$112,\"\",B39)","v":""},null,{"$f":"IF(F39=matrixen!$E$112,\"\",F39)","v":""},{"$nulls":16},{"$f":"matrixen!B150","v":"Coupe met aardbeien en verse slagroom."},{"$nulls":6},{"$f":"matrixen!M29","v":"Roomsoes met warme chocoladesaus "},{"$f":"IF($B$49=matrixen!$B$147,'selecteer hier uw barbecue'!AH77,\"\")","v":""}]
[null,{"$f":"matrixen!A303 & \" aan \" & matrixen!E303 & \" euro\"","v":"Belegde broodjes (2 pp) aan 4,5 euro"},null,null,"email:",null,null,{"$f":"IF(B40=matrixen!$B$112,\"\",B40)","v":""},null,{"$f":"IF(F40=matrixen!$E$112,\"\",F40)","v":""},{"$nulls":16},{"$f":"matrixen!B151","v":"Dame blanche"},{"$nulls":6},{"$f":"matrixen!M30","v":"Tiramisu"},{"$f":"IF($B$49=matrixen!$B$147,'selecteer hier uw barbecue'!AH78,\"\")","v":""}]
[null,{"$f":"matrixen!A304 & \" aan \" & matrixen!E304 & \" euro\"","v":"Braadworst aan 3 euro"},null,null,"reden feest:",null,null,"Basisprijs BBQ:",{"$f":"D35","v":{"v":36.9,"d":"36.90"}},null,{"$f":"IF(L79>0,\"supplement vis:\",\"\")","v":""},{"$f":"D39","v":{"v":0,"d":"0.00"}},{"$nulls":14},{"$f":"matrixen!B152","v":"- frambozentaart"},{"$nulls":6},{"$f":"matrixen!M31","v":"Javanais"},{"$f":"IF($B$49=matrixen!$B$147,'selecteer hier uw barbecue'!AH79,\"\")","v":""}]
[null,{"$f":"matrixen!A305 & \" aan \" & matrixen!E305 & \" euro\"","v":"Scampi (3pp) Nantua met farfale en broccoli aan 4,5 euro"},null,null,"Opmerking:",null,null,{"$f":"B45","v":"Huiswijn, bieren en frisdranken als forfait"},{"$nulls":3},{"$f":"D45","v":{"v":3.8,"d":"3.80"}},{"$nulls":14},{"$f":"matrixen!B153","v":"- progres"},{"$nulls":6},{"$f":"matrixen!M32","v":"Gebak peer-caramel "},{"$f":"IF($B$49=matrixen!$B$147,'selecteer hier uw barbecue'!AH80,\"\")","v":""}]
[{"$nulls":4},"geraamde totalen uit andere rekenbladen:",null,null,{"$f":"IF(L81>0,B49,\"\")","v":""},{"$nulls":3},{"$f":"D49","v":{"v":0,"d":"0.00"}},{"$nulls":14},{"$f":"matrixen!B154","v":"- fruitgebakje"},{"$nulls":6},{"$f":"matrixen!M33","v":"mini fruittaartje"},{"$f":"IF($B$49=matrixen!$B$147,'selecteer hier uw barbecue'!AH81,\"\")","v":""}]
[null,null,"(vb: kindermenus)",{"$nulls":4},{"$f":"IF(L82>0,B60,\"\")","v":""},{"$nulls":3},{"$f":"D60","v":{"v":0,"d":"0.00"}},{"$nulls":14},{"$f":"matrixen!B155","v":"- biscuit crème fraiche met coulis"}]
[{"$nulls":4},"Geschat factuurtotaal:",{"$f":"Reservatievoorstel!I13","v":{"v":1250,"d":"€ 1,250.00"}},null,"Keuze drank na de maaltijd:",{"$nulls":3},{"$f":"E58","v":"direct afrekenen"},{"$nulls":14},{"$f":"matrixen!B156","v":"- warme appeltaart met een bolletje ijs"}]
[{"$nulls":5},"(Gebaseerd op de door u ingebrachte gegevens)",{"$nulls":20},{"$f":"matrixen!B157","v":"- zwarte woudtaart"}]
[{"$nulls":4},"korting bij contante betaling:",{"$f":"F83*0.02","v":{"v":25,"d":"€ 25.00"}},{"$nulls":20},{"$f":"matrixen!B158","v":"Sabayon met rood fruit"}]
[null,"Mogelijke supplementen bij de recepties",null,null,"saldo:",{"$f":"F83-F85","v":{"v":1225,"d":"€ 1,225.00"}},null,"Gaat u akkoord met de algemene verkoopsvoorwaarden?",null,null,"ja",{"$nulls":15},{"$f":"matrixen!B159","v":0}]
[{"$nulls":9},{"$f":"\"Wenst u exclusiviteit voor het volledige domein mits meerprijs van € \"&matrixen!F222&\" ?\"","v":"Wenst u exclusiviteit voor het volledige domein mits meerprijs van € 750 ?"},"nee",{"$f":"IF(K87=\"ja\",matrixen!F222,0)","v":0},{"$nulls":14},{"$f":"matrixen!B160","v":"Basis dessertbuffet met:"}]
[null,"Schuimwijn van het huis (reeds inbegrepen)",null,{"$f":"VLOOKUP(B88,matrixen!B23:I26,8,FALSE)","v":{"v":0,"d":"0.00"}},{"$nulls":5},"Voorkeur tafelschikking: ","geen voorkeur",{"$nulls":15},{"$f":"matrixen!B161","v":"Uitgebreid dessertbuffet met:"}]
[null,"Schuimwijn van het huis (reeds inbegrepen)",{"$nulls":8},"geen voorkeur",{"$nulls":15},{"$f":"matrixen!B162","v":"Uitgebreid en luxueus dessertbuffet met:"}]
[{"$nulls":9},"Wijze van betaling: ","Betaling op de dag zelf (cash of bancontact), u bekomt 2% korting op het totaal",{"$nulls":15},{"$f":"matrixen!B163","v":0}]
[{"$nulls":26},{"$f":"matrixen!B164","v":0},{"$f":"matrixen!B169","v":"Nog geen keuze gemaakt"}]
[{"$nulls":9},"Wenst u een factuur?","nee",{"$nulls":16},{"$f":"matrixen!B170","v":"Koffie 3 X bediend"}]
[{"$nulls":4},{"$f":"SUMIF(B94:B98,\"warme toostjes per stuk\",D94:D98)","v":0},{"$f":"IF($E$93>0,matrixen!B58,\"\")","v":""},{"$f":"SUMIF(B94:B98,\"koude toostjes per stuk\",D94:D98)","v":0},{"$f":"IF($G$93>0,matrixen!E58,\"\")","v":""},{"$nulls":19},{"$f":"matrixen!B171","v":"Koffie 3 X bediend met koekjes"}]
[{"$nulls":5},{"$f":"IF($E$93>0,matrixen!B59,\"\")","v":""},null,{"$f":"IF($G$93>0,matrixen!E59,\"\")","v":""},{"$f":"SUMIF(B94:B98,\"aperitiefglaasjes per stuk\",D94:D98)","v":0},{"$f":"IF($I$94>0,matrixen!H59,\"\")","v":""},{"$nulls":17},{"$f":"matrixen!B172","v":"Koffie 3 X bediend met pralines"}]
[{"$nulls":5},{"$f":"IF($E$93>0,matrixen!B60,\"\")","v":""},null,{"$f":"IF($G$93>0,matrixen!E60,\"\")","v":""},null,{"$f":"IF($I$94>0,matrixen!H60,\"\")","v":""},{"$nulls":16},{"$f":"matrixen!B173","v":0}]
[{"$nulls":5},{"$f":"IF($E$93>0,matrixen!B61,\"\")","v":""},null,{"$f":"IF($G$93>0,matrixen!E61,\"\")","v":""},null,{"$f":"IF($I$94>0,matrixen!H61,\"\")","v":""},{"$nulls":16},{"$f":"matrixen!A176","v":"Alle drank na de maaltijd komt op één rekening en wordt door de organisator van het feest betaald"}]
[{"$nulls":5},{"$f":"IF($E$93>0,matrixen!B62,\"\")","v":""},null,{"$f":"IF($G$93>0,matrixen!E62,\"\")","v":""},null,{"$f":"IF($I$94>0,matrixen!H62,\"\")","v":""},{"$nulls":16},{"$f":"matrixen!A177","v":"Elke gast die na de maaltijd een drankje bestelt rekent direct af aan de bar"}]
[{"$nulls":5},{"$f":"IF($E$93>0,matrixen!B63,\"\")","v":""},null,{"$f":"IF($G$93>0,matrixen!E63,\"\")","v":""},null,{"$f":"IF($I$94>0,matrixen!H63,\"\")","v":""},{"$nulls":16},{"$f":"matrixen!A178","v":"Forfait voor drank naar believen (alle bieren en frisdranken van de drankkaart in de zaal) na een maaltijd. pp: "}]
[{"$nulls":5},{"$f":"IF($E$93>0,matrixen!B64,\"\")","v":""},null,{"$f":"IF($G$93>0,matrixen!E64,\"\")","v":""}]
[{"$nulls":26},{"$f":"matrixen!A204","v":"ja"}]
[{"$nulls":26},{"$f":"matrixen!A205","v":"nee"}]
[]
[{"$nulls":26},"geen voorkeur"]
[{"$nulls":26},"zoveel mogelijk ronde tafels van 6 à 8 personen"]
[{"$nulls":26},"liever lange tafels ev. In U-vorm of H-vorm."]
[]
[{"$nulls":26},{"$f":"matrixen!A380","v":"Betaling op de dag zelf (cash of bancontact), u bekomt 2% korting op het totaal"}]
[{"$nulls":26},{"$f":"matrixen!A381","v":"Storting op BE 48 4631 1391 2127 min. 7 dagen voor het feest, 2% korting"}]
[{"$nulls":26},{"$f":"matrixen!A382","v":"Betaling na het feest. Gelieve 40 % voorschot te storten op BE48 4631 1391 2127. Geen korting."}]

{"sheet":"matrixen","index":1,"n_rows":523,"n_cols":39,"rows_kept":523,"hidden":true}
[null,"Prijzen geldig tot 31/03/2023",{"$nulls":9},"lam, zwanen enz..  . Met foto suppl.",{"$nulls":3},{"v":15,"d":"15.00"}]
["Deze bladen kopiëren en waarden plakken en alle prijzen van de rekenmodules worden aangepast",{"$nulls":10},"Foto op de taart: suppl. € ",null,null,{"v":1,"d":"1.00"},"per stuk taart en € ",null,{"v":12,"d":"12.00"}," per foto"]
[]
[null,"Minimaal verbruik feest",null,null,{"v":1250,"d":"€ 1,250.00"}]
[]
[]
[]
[]
[]
[]
[null,"Maak in dit vak uw keuze voor het aperitief",{"$nulls":10},"Aanpassingen in de omschrijving van de receptie doen IN het kader en alles blijft ok. Allemaal in 1 keer behalve rec & bb borrels",{"$nulls":8},"Omschrijving kan in het kader."]
[null,"1 aperitief per persoon",{"$nulls":6},{"v":6,"d":"€ 6.00"},{"$nulls":3},"Het tabblad recepties en babyb bij aanpassingen niet meenemen wnat daar staan extra rfecepties op.",{"$nulls":8},"Recepties hier worden overal aangepast."]
[null,"2 aperitieven per persoon",{"$nulls":6},{"v":12,"d":"€ 12.00"},{"$nulls":3},"Dat moet dus apart worden aangepast."]
[null,"Receptie E",{"$nulls":6},{"v":12.600000000000001,"d":"€ 12.60"},null,"Maak in dit vak uw keuze voor het aperitief","1 aperitief per persoon","2 aperitieven per persoon","Receptie E","Receptie A",{"$nulls":4},"Maak in dit vak uw keuze voor het aperitief","1 aperitief per persoon","2 aperitieven per persoon",null,"Receptie E",{"$nulls":3},"Receptie A"]
[null,"Receptie A",{"$nulls":6},{"v":10,"d":"€ 10.00"},null,null,"1 per persoon,  ","2 per persoon,  ","Uitgebreide receptie","Basis receptie.",{"$nulls":5},"vrije keuze","vrije keuze",null,"dranken inbegrepen",{"$nulls":3},"dranken inbegrepen",{"$nulls":10},"Keuze aperitiefhapjes:"]
[{"$nulls":11},"eventueel tweede wordt","eventueel derde wordt","met 4 aperitiefglaasjes","Dranken 2 uur inbegrepen.",{"$nulls":5},"Porto rood","Porto rood",null,"gedurende 2 uur",{"$nulls":3},"gedurende 2 uur",{"$nulls":10},"BORD"]
[{"$nulls":11},"direct afgerekend of","direct afgerekend of"," en drank gedurende 2 uur.","Met tapenades:",{"$nulls":5},"Martini","Martini",null,"met huis schuimwijn,",{"$nulls":3},"met huis schuimwijn,",{"$nulls":10},"Bord met rauwe groenten en cocktailsaus (wortel, bloemkool, radijs)"]
[{"$nulls":11},"komt op 1 rekening","komt op 1 rekening",null,"tonijn / pesto spread rosso /zoete peper roomkaas",{"$nulls":5},"Kir","Kir",null,"frisdranken en",{"$nulls":3},"frisdranken en",{"$nulls":10},"Bord met olijven, kaasjes en salamietjes"]
[{"$nulls":20},"Frisdrank","Frisdrank",null,"bieren naar believen.",{"$nulls":3},"bieren naar believen.",{"$nulls":10},"Bord met 3 tapenades (tonijn / pesto spread rosso /zoete peper roomkaas)"]
[{"$nulls":20},"Bieren","Bieren",{"$nulls":16},"KOUD"]
[{"$nulls":20},"nootjes en chips inbegr.","nootjes en chips inbegr.",null,"Assortiment van 4  ",{"$nulls":3},"Ook inbegrepen:",{"$nulls":10},"crunchy sushi"]
[{"$nulls":12},"Roomijs ",{"$nulls":7},"TIP:","TIP:",null,"aperitiefglaasjes",{"$nulls":3},"tapenades",{"$nulls":10},"luzerne met gerookte zalm, eitjes van vliegende vis in wasabi"]
[null,"Schuimwijn van het huis (reeds inbegrepen)",{"$nulls":6},{"v":0,"d":"€ 0.00"},{"$nulls":3},"Bruine chocolademousse",{"$nulls":7},"Receptie A","Receptie A",null,"inbegrepen.",{"$nulls":3},"nootjes en chips",{"$nulls":10},"preischeuten met tijgergarnalen en mini tomaat"]
[null,"Cava",{"$nulls":6},{"v":3.5,"d":"€ 3.50"},{"$nulls":3},"Pasteis de nata",{"$nulls":7},"kost evenveel als","kost evenveel als",null,"Maak uw keuze",{"$nulls":14},"aperoglaasje parmaham met meloenbolletjes"]
[null,"Champagne",{"$nulls":6},{"v":7,"d":"€ 7.00"},{"$nulls":3},"Chocoladebavarois",{"$nulls":7},"2 aperitieven pp.","2 aperitieven pp.",null,"hier rechts! =>",{"$nulls":14},"ganache van foie gras met frambozenconfituur en amandelbrood"]
[{"$nulls":12},"Miserable",{"$nulls":7},"En dan is de drank naar","En dan is de drank naar",{"$nulls":16},"aperoglaasje parmaham met espuma van mango"]
[null,"Schuimwijn brut",{"$nulls":6},{"v":0,"d":"€ 0.00"},{"$nulls":3},"glaasje fruitsla met perensorbet",{"$nulls":7},"believen!","believen!",null,"Liever meer dan 4 hapjes? Geen probleem.",{"$nulls":14},"verse oester"]
[{"$nulls":12},"Witte chocolademousse ",{"$nulls":7},"En met tapenades!","En met tapenades!",null,"Het supplement bedraagt € 1,60 per hapje",{"$nulls":14},"Taboulé met gerookte forel"]
[{"$nulls":12},"Roomsoes met warme chocoladesaus ",{"$nulls":6},"Menu's BBQ",{"$nulls":18},"Haringhapje met curry"]
[null,"Dessertbuffet zonder maaltijd: ",{"$nulls":6},{"v":18,"d":"€ 18.00"},{"$nulls":3},"Tiramisu",{"$nulls":25},"Mini bagel met zalm en kruidenkaas"]
[null,"Koffie 3 X bediend",{"$nulls":6},{"v":2.9,"d":"€ 2.90"},{"$nulls":3},"Javanais",{"$nulls":5},1,"Dit menu kunt u samenstellen en wijzigen via de tool Barbecue's",{"$nulls":18},"SOEP"]
[{"$nulls":12},"Gebak peer-caramel ",{"$nulls":5},2,"Prijs per volwassene:",{"$nulls":5},{"v":50.599999999999994,"d":"€ 50.60"},{"$nulls":12},"Kreeftensoep"]
[{"$nulls":12},"mini fruittaartje",{"$nulls":5},3,{"$nulls":19},"Aspergeroomsoep met koornbloemblaadjes"]
[null,"1 aperitief per persoon, vrije keuze",{"$nulls":6},{"v":6,"d":"€ 6.00"},{"$nulls":3},"frambozenbavarois",{"$nulls":5},4,"1 aperitief per persoon",null,"vrije keuze",{"$nulls":4},{"v":6,"d":"€ 6.00"},{"$nulls":11},"Pompoensoep (sept. okt. nov.)"]
[null,"Pineau des charentes wit",{"$nulls":6},{"v":6,"d":"€ 6.00"},{"$nulls":9},5,"Nootjes, chips en zoutkoekjes zoveel u wenst,  per pers.",{"$nulls":18},"Kervelroomsoep met gerookte eend"]
[null,"Maison (basis safari)",{"$nulls":6},{"v":6,"d":"€ 6.00"},{"$nulls":9},6,{"$nulls":19},"Preiroomsoep met broccoligarnituur en gebakken spekjes"]
[null,"Kir royale",{"$nulls":6},{"v":6,"d":"€ 6.00"},{"$nulls":9},7,{"$nulls":19},"Soepje van boschampignons met gerookte paling"]
[null,"Sherry dry",{"$nulls":6},{"v":6,"d":"€ 6.00"},{"$nulls":9},8,"- Worst",{"$nulls":6},{"v":36.9,"d":"36.90"},{"$nulls":11},"WARM"]
[null,"Porto",{"$nulls":6},{"v":6,"d":"€ 6.00"},{"$nulls":9},9,"- Kippenboutjes",{"$nulls":18},"mini hot-dog"]
[null,"Martini (wit/rood)",{"$nulls":6},{"v":6,"d":"€ 6.00"},{"$nulls":9},10,"- Gemarineerde kotelet  ",{"$nulls":18},"Breydelspek met mosterdroomsaus"]
[null,"Kir",{"$nulls":6},{"v":6,"d":"€ 6.00"},{"$nulls":9},11,"- Lamskoteletjes ",{"$nulls":18},"aperoglaasje scampi"]
[null,"Schuimwijn",{"$nulls":6},{"v":6,"d":"€ 6.00"},{"$nulls":9},12,"- Varkensbrochet",{"$nulls":18},"Warme dagvis met curry"]
[{"$nulls":18},13,"Koude aardappelen",{"$nulls":18},"een gevuld toastcupje"]
[null,"Maak hier uw keuze voor extra hapjes bij het aperitief",{"$nulls":16},14,"Groenten en sausen",{"$nulls":18},"oester met champagnesaus "]
[null,"Nootjes, chips en zoutkoekjes zoveel u wenst,  per pers.",{"$nulls":6},"gratis",{"$nulls":9},15,{"$nulls":19},"garnaal in filo"]
[null,"Rauwe groenten (wortel, bloemkool, cocktailsaus) prijs per persoon:",{"$nulls":6},{"v":1.6,"d":"€ 1.60"},{"$nulls":9},16,"Huiswijn, bieren en frisdranken als forfait",{"$nulls":6},{"v":3.8,"d":"3.80"},{"$nulls":11},"mini croque"]
[null,"aperitiefglaasjes per stuk",{"$nulls":6},{"v":1.6,"d":"€ 1.60"},{"$nulls":9},17,{"$nulls":19},"mini loempia"]
[null,"aperitiefglaasjes per stuk",{"$nulls":6},{"v":1.6,"d":"€ 1.60"},{"$nulls":9},18,"Koffie 3 X bediend met koekjes",{"$nulls":6},{"v":3.9,"d":"3.90"},{"$nulls":11},"mini kippenboutje"]
[null,"aperitiefglaasjes per stuk",{"$nulls":6},{"v":1.6,"d":"€ 1.60"},{"$nulls":29},"Gepaneerde garnalen butterfly"]
[{"$nulls":18},1,"Dit menu kunt u samenstellen en wijzigen via de tool Barbecue's",{"$nulls":18},"DESSERT"]
[null,"wachtbordje met vispasteitje",{"$nulls":6},{"v":4,"d":"€ 4.00"},{"$nulls":9},2,"Prijs per volwassene:",{"$nulls":5},{"v":56.599999999999994,"d":"€ 56.60"},{"$nulls":12},"mini dame blanche (1 bol in wijnglas)"]
[null,"wachtbordje van reuzentoost met gerookte zalm",{"$nulls":6},{"v":4,"d":"€ 4.00"},{"$nulls":9},3,{"$nulls":19},"Bruine chocolademousse"]
[null,"wachtbordje van lauw slaatje met gerookte zalm en scampi's",{"$nulls":6},{"v":6,"d":"€ 6.00"},{"$nulls":9},4,"2 aperitieven per persoon",null,null,"vrije keuze",{"$nulls":3},{"v":12,"d":"€ 12.00"},{"$nulls":11},"Pasteis de nata"]
[{"$nulls":18},5,"Nootjes, chips en zoutkoekjes zoveel u wenst,  per pers.",{"$nulls":18},"Chocoladebavarois"]
[{"$nulls":18},6,{"$nulls":19},"Miserable"]
[{"$nulls":18},7,{"$nulls":19},"mini fruittaartje"]
[{"$nulls":18},8,"- Worst",{"$nulls":6},{"v":36.9,"d":"36.90"},{"$nulls":11},"glaasje fruitsla met perensorbet"]
[null,"Keuze warme toostjes",null,null,"Keuze koude toostjes",null,null,"Keuze aperoglaasjes",{"$nulls":10},9,"- Kippenboutjes",{"$nulls":18},"Witte chocolademousse"]
[null,"(bij reservatie te bepalen)",null,null,"(bij reservatie te bepalen)",null,null,"(bij reservatie te bepalen)",{"$nulls":10},10,"- Gemarineerde kotelet  ",{"$nulls":18},"Roomsoes met warme chocoladesaus"]
[null,"kippenbilletjes",null,null,"toost garnaal koud",null,null,"aperoglaasje eendenmousse",{"$nulls":10},11,"- Lamskoteletjes ",{"$nulls":18},"Tiramisu"]
[null,"toostcupje",null,null,"toost gerookte zalm koud",null,null,"aperoglaasje gerookte zalm",{"$nulls":10},12,"- Varkensbrochet",{"$nulls":18},"Gebak peer-caramel"]
[null,"garnaal in filo",null,null,"toost krabsla koud",null,null,"aperoglaasje mousse van krab",{"$nulls":10},13,"Koude aardappelen",{"$nulls":18},"javanais"]
[null,"mini croque",null,null,"toost eendenpastei koud",null,null,"aperoglaasje tomaat / garnaal",{"$nulls":10},14,"Groenten en sausen",{"$nulls":18},"frambozenbavarois"]
[null,"scampi enz….",{"$nulls":5},"en nog veel mogelijkheden",{"$nulls":10},15]
[{"$nulls":18},16,"Huiswijn, bieren en frisdranken als forfait",{"$nulls":6},{"v":3.8,"d":"3.80"}]
[{"$nulls":18},17]
[{"$nulls":18},18,"Koffie 3 X bediend met koekjes",{"$nulls":6},{"v":3.9,"d":"3.90"}]
[]
[{"$nulls":18},1,"Dit menu kunt u samenstellen en wijzigen via de tool Barbecue's"]
[{"$nulls":3},"Maak hier uw keuze",{"$nulls":14},2,"Prijs per volwassene:",{"$nulls":5},{"v":44.599999999999994,"d":"€ 44.60"}]
[null,"Belegd met:",null,"parmaham",null,null,"€ ",{"v":4.5,"d":"4.50"},{"$nulls":10},3]
[{"$nulls":3},"grijze garnalen",null,null,"€ ",{"v":4.2,"d":"4.20"},{"$nulls":10},4,0,{"$nulls":6},{"v":0,"d":"€ 0.00"}]
[{"$nulls":3},"gerookte zalm",null,null,"€ ",{"v":2.5,"d":"2.50"},{"$nulls":10},5," en diverse warme en koude hapjes"]
[{"$nulls":3},"zalmsalade",null,null,"€ ",{"v":2.5,"d":"2.50"},{"$nulls":10},6,"of Receptie E met aperitiefglaasjes"]
[{"$nulls":3},"gerookte ham",null,null,"€ ",{"v":2.5,"d":"2.50"},{"$nulls":10},7]
[{"$nulls":3},"vissla",null,null,"€ ",{"v":2.5,"d":"2.50"},{"$nulls":10},8,"- Worst",{"$nulls":6},{"v":36.9,"d":"36.90"}]
[null," ",null,"kaas",null,null,"€ ",{"v":2.5,"d":"2.50"},{"$nulls":10},9,"- Kippenboutjes"]
[{"$nulls":3},"gekookte ham",null,null,"€ ",{"v":2.5,"d":"2.50"},{"$nulls":10},10,"- Gemarineerde kotelet  "]
[{"$nulls":3},"américain préparé",null,null,"€ ",{"v":2.5,"d":"2.50"},{"$nulls":10},11,"- Lamskoteletjes "]
[{"$nulls":3},"krabsla",null,null,"€ ",{"v":2.5,"d":"2.50"},{"$nulls":10},12,"- Varkensbrochet"]
[{"$nulls":3},"kipsla",null,null,"€ ",{"v":2.5,"d":"2.50"},{"$nulls":10},13,"Koude aardappelen"]
[{"$nulls":18},14,"Groenten en sausen"]
[{"$nulls":18},15]
[null,null,"uitgebreide fomule met toostjes in menuvorm (max 3uur)",{"$nulls":15},16,"Huiswijn, bieren en frisdranken als forfait",{"$nulls":6},{"v":3.8,"d":"3.80"}]
[null,null,"“3 koude voorgerechtjes”",{"$nulls":15},17]
[null,null,"koud hapje met krabsla ",{"$nulls":15},18,"Koffie 3 X bediend met koekjes",{"$nulls":6},{"v":3.9,"d":"3.90"}]
[null,null,"koud hapje met gerookte zalm"]
[null,null,"koud hapje met grijze garnalen"]
[null,null,"“soepje”",{"$nulls":15},1,"Dit menu kunt u samenstellen en wijzigen via de tool Barbecue's"]
[null,null,"1 mini soepje tomatenroom of vissoepje",{"$nulls":15},2,"Prijs per volwassene:",{"$nulls":5},{"v":56.599999999999994,"d":"€ 56.60"}]
[null,null,"“3 warme gerechtjes”",{"$nulls":15},3]
[null,null,"kippenboutje",{"$nulls":15},4,"1 aperitief per persoon",null,"vrije keuze",{"$nulls":4},{"v":6,"d":"€ 6.00"}]
[null,null,"mini loempia",{"$nulls":15},5,"Nootjes, chips en zoutkoekjes zoveel u wenst,  per pers."]
[null,null,"mini croque monsieur",{"$nulls":15},6]
[null,null,"“2 dessertjes”",{"$nulls":15},7]
[null,null,"mini-brochetje met druifje, ananas en meloenbolletje",{"$nulls":15},8,"- Brochette met gepelde scampi's",{"$nulls":6},{"v":6,"d":"6.00"}]
[null,null,"mini confituurtaartje",{"$nulls":15},9,"- Stukje zalm en papillotte"]
[{"$nulls":18},10,"- Worst",{"$nulls":6},{"v":36.9,"d":"36.90"}]
[{"$nulls":18},11,"- Lamskoteletjes "]
[null,"Koude aardappelen",{"$nulls":4},"inbegrepen",{"$nulls":11},12,"- Varkensbrochet"]
[null,"Aardappel in de pel",{"$nulls":4},"inbegrepen",{"$nulls":11},13,"Koude aardappelen"]
[null,"1/2 koude aardappelen en 1/2 aardappel in de pel",{"$nulls":4},"inbegrepen",{"$nulls":11},14,"Groenten en sausen"]
[null,"frietjes (supplement)",{"$nulls":4},{"v":1,"d":"1.00"},{"$nulls":11},15]
[{"$nulls":18},16,"Huiswijn, bieren en frisdranken als forfait",{"$nulls":6},{"v":3.8,"d":"3.80"}]
[null,"BBQ meer dan 5 soorten: per extra soort =",{"$nulls":3},"€ ",{"v":4,"d":"4.00"},{"$nulls":11},17]
[null,"Warme sausen bij BBQ 2 alleen vlees = ",{"$nulls":3},"€ ",{"v":2.5,"d":"2.50"},{"$nulls":11},18,"Koffie 3 X bediend met koekjes",{"$nulls":6},{"v":3.9,"d":"3.90"}]
[]
[{"$nulls":18},1,"Dit menu kunt u samenstellen en wijzigen via de tool Barbecue's"]
[{"$nulls":18},2,"Prijs per volwassene:",{"$nulls":5},{"v":62.599999999999994,"d":"€ 62.60"}]
[{"$nulls":18},3]
[{"$nulls":18},4,"2 aperitieven per persoon",null,null,"vrije keuze",{"$nulls":3},{"v":12,"d":"€ 12.00"}]
[1,"Kies uit deze vleesspecialiteiten",null,1,"supp.  visgerechten / rund",{"$nulls":13},5,"Nootjes, chips en zoutkoekjes zoveel u wenst,  per pers."]
[2,"- Worst",null,2,"- Brochette met gepelde scampi's",{"$nulls":13},6]
[3,"- Kippenboutjes",null,3,"- Stukje zalm en papillotte",{"$nulls":13},7]
[4,"- Gemarineerde kotelet  ",null,4,"- Stukje victoriabaarsfilet met fijne kruiden en papillotte",{"$nulls":13},8,"- Brochette met gepelde scampi's",{"$nulls":6},{"v":6,"d":"6.00"}]
[5,"- Lamskoteletjes ",null,5,"- Forel met fijne groenten en papillotte",{"$nulls":13},9,"- Stukje zalm en papillotte"]
[6,"- Varkensbrochet",null,6,"- Witte zalm in een jasje van ham",{"$nulls":13},10,"- Worst",{"$nulls":6},{"v":36.9,"d":"36.90"}]
[7,"-  Kasselrib    ",null,7,"- Côte à l’os",{"$nulls":13},11,"- Lamskoteletjes "]
[8,"- Ribbetjes",null,8,"- Steak",{"$nulls":13},12,"- Varkensbrochet"]
[9,"- Worst",{"$nulls":16},13,"Koude aardappelen"]
[10,"- Kippenboutjes",null,null,"U mag 2 warme sausen kiezen als u ook vis of rund kiest!",{"$nulls":13},14,"Groenten en sausen"]
[{"$nulls":4},"bearnaise",{"$nulls":13},15]
[{"$nulls":4},"romige portosaus",{"$nulls":13},16,"Huiswijn, bieren en frisdranken als forfait",{"$nulls":6},{"v":3.8,"d":"3.80"}]
[{"$nulls":4},"pepersaus",{"$nulls":13},17]
[{"$nulls":4},"mosterd en look,",{"$nulls":13},18,"Koffie 3 X bediend met koekjes",{"$nulls":6},{"v":3.9,"d":"3.90"}]
[{"$nulls":4},"champignonroomsaus"]
[{"$nulls":4},"kreeftsaus met groentebrunoise",{"$nulls":13},1,"Dit menu kunt u samenstellen en wijzigen via de tool Barbecue's"]
[{"$nulls":4},"kreeftsaus zonder groenten",{"$nulls":13},2,"Prijs per volwassene:",{"$nulls":5},{"v":50.599999999999994,"d":"€ 50.60"}]
[{"$nulls":4},"saffraansaus",{"$nulls":13},3]
[{"$nulls":4},"bieslooksaus",{"$nulls":13},4,0,{"$nulls":6},{"v":0,"d":"€ 0.00"}]
[{"$nulls":18},5," en diverse warme en koude hapjes"]
[null,"basisprijs",null,null,"sup. Tov basisprijs",null,null,"1/2 warme kreeft i.p.v. 2 andere soorten",{"$nulls":5},"       ",{"$nulls":4},6,"of Receptie E met aperitiefglaasjes"]
[null,{"v":36.9,"d":"36.90"},null,null,{"v":6,"d":"6.00"},null,"supple:",{"v":5,"d":"5.00"},{"$nulls":10},7]
[null,"Basisprijs BBQ",null,null,"sup vis",{"$nulls":13},8,"- Brochette met gepelde scampi's",{"$nulls":6},{"v":6,"d":"6.00"}]
[{"$nulls":18},9,"- Stukje zalm en papillotte"]
[{"$nulls":18},10,"- Worst",{"$nulls":6},{"v":36.9,"d":"36.90"}]
[null,"Bio wijnen, bieren en frisdranken als forfait",{"$nulls":10},{"v":0,"d":"0.00"},{"$nulls":5},11,"- Lamskoteletjes "]
[{"$nulls":18},12,"- Varkensbrochet"]
[null,"Huiswijn, bieren en frisdranken als forfait",{"$nulls":10},{"v":3.8,"d":"3.80"},{"$nulls":5},13,"Koude aardappelen"]
[null,"Domaine Joel Delauny Touraine  en/of Château Reynier, Bordeaux superieur,  bieren en frisdranken",{"$nulls":10},{"v":8,"d":"8.00"},{"$nulls":5},14,"Groenten en sausen"]
[{"$nulls":18},15]
[{"$nulls":18},16,"Huiswijn, bieren en frisdranken als forfait",{"$nulls":6},{"v":3.8,"d":"3.80"}]
[null,"supplement per stukje gebak:",{"$nulls":6},{"v":1,"d":"1.00"},{"$nulls":9},17]
[{"$nulls":18},18,"Koffie 3 X bediend met koekjes",{"$nulls":6},{"v":3.9,"d":"3.90"}]
[null,"Nog geen dessert geselecteerd"]
[null,"IJstaart ambachtelijk, speciale vorm, smaak naar keuze",{"$nulls":6},{"v":6,"d":"6.00"},null,"Ijstaart met foto: 15 euro per foto (min personen). Speciale garnituren mits meerprijs mogelijk."]
[null,"Stel hieronder uw mini dessertbordje samen met minstens 4 dessertjes",{"$nulls":6},{"v":4,"d":"4.00"},null,"Keuze: Roomijs en/of Bruine chocolademousse en/of Pasteis de nata en/of ","Chocoladebavarois en/of Miserable en/of glaasje fruitsla met perensorbet en/of ","Witte chocolademousse en/of Roomsoes met warme chocoladesaus en/of Tiramisu en/of ","Javanais en/of Gebak peer-caramel en/of mini fruittaartje.",{"$nulls":4},1,"Dit menu kunt u samenstellen en wijzigen via de tool Barbecue's"]
[null,"Coupe met vers fruit en verse slagroom.",{"$nulls":6},{"v":4,"d":"4.00"},null,"Vanilleijs, vers fruit en verse slagroom",{"$nulls":7},2,"Prijs per volwassene:",{"$nulls":5},{"v":51.599999999999994,"d":"€ 51.60"}]
[null,"Aardbeiensoepje met sinaasappel in seizoen",{"$nulls":6},{"v":4,"d":"4.00"},null,"Sinaasappelsap met grand marnier en daarin vers gesneden aardbeien (alleen in seizoen)",{"$nulls":7},3]
[null,"Coupe met aardbeien en verse slagroom.",{"$nulls":6},{"v":4,"d":"4.00"},null,"Vanilleijs, verse aardbeien en verse slagroom",{"$nulls":7},4,"1 aperitief per persoon",null,"vrije keuze",{"$nulls":4},{"v":6,"d":"€ 6.00"}]
[null,"Dame blanche",{"$nulls":6},{"v":6,"d":"6.00"},null,"Vanilleijs, verse slagroom,warme chocoladesaus.",{"$nulls":7},5,"Nootjes, chips en zoutkoekjes zoveel u wenst,  per pers."]
[null,"- frambozentaart",{"$nulls":6},{"v":6,"d":"6.00"},null,"De lekkerste van alle gebakjes.",{"$nulls":7},6]
[null,"- progres",{"$nulls":6},{"v":6,"d":"6.00"},null,"Een klassieker.",{"$nulls":7},7]
[null,"- fruitgebakje",{"$nulls":6},{"v":6,"d":"6.00"},null,"Klein maar fijn gebakje",{"$nulls":7},8,"- Worst",{"$nulls":6},{"v":36.9,"d":"36.90"}]
[null,"- biscuit crème fraiche met coulis",{"$nulls":6},{"v":4,"d":"4.00"},null,"Vrij groot stuk met slagroom. Foto op de taart: suppl. € 1 per stuk taart en € 12 per foto ",{"$nulls":7},9,"- Kippenboutjes"]
[null,"- warme appeltaart met een bolletje ijs",{"$nulls":6},{"v":4,"d":"4.00"},null,"Hier heb je zowel gebak als vanilleijs.",{"$nulls":7},10,"- Gemarineerde kotelet  "]
[null,"- zwarte woudtaart",{"$nulls":6},{"v":6,"d":"6.00"},null,"Biscuit met cacaopoeder in een tasje.",{"$nulls":7},11,"- Lamskoteletjes "]
[null,"Sabayon met rood fruit",{"$nulls":6},{"v":4,"d":"4.00"},null,"Sabayon, fruit en ijs",{"$nulls":7},12,"- Varkensbrochet"]
[{"$nulls":18},13,"frietjes (supplement)",{"$nulls":6},{"v":1,"d":"1.00"}]
[null,"Basis dessertbuffet met:",{"$nulls":6},{"v":11,"d":"11.00"},null,"vers fruit, verschillende soorten sorbet, chocolademousse, roomijs","variatie van miserable, javanais, pasteis de nata, roomsoes, speculoostaart,","De samenstelling van het buffet kan verschillen, naargelang de grootte van de groep",null,null,"Belangrijk: De prijs van dit dessertbuffet geldt alleen indien voorafgegaan door een maaltijd!!",null,null,14,"Groenten en sausen"]
[null,"Uitgebreid dessertbuffet met:",{"$nulls":6},{"v":14.5,"d":"14.50"},null,"vers fruit, verschillende soorten sorbet, chocolademousse, roomijs","variatie van miserable, javanais, pasteis de nata, roomsoes, speculoostaart,","De samenstelling van het buffet kan verschillen, naargelang de grootte van de groep","assortiment van mini-bavarois (framboos-passie-zwarte woud-pistache-chocolade praliné)",null,"Belangrijk: De prijs van dit dessertbuffet geldt alleen indien voorafgegaan door een maaltijd!!",null,null,15]
[null,"Uitgebreid en luxueus dessertbuffet met:",{"$nulls":6},{"v":18,"d":"18.00"},null,"vers fruit, verschillende soorten sorbet, chocolademousse, roomijs","variatie van miserable, javanais, pasteis de nata, roomsoes, speculoostaart,","De samenstelling van het buffet kan verschillen, naargelang de grootte van de groep","assortiment van mini-bavarois (framboos-passie-zwarte woud-pistache-chocolade praliné)","dessertglaasjes (framboos-amandel - trio chocolade - mango-caramel - chocolade praliné)","Belangrijk: De prijs van dit dessertbuffet geldt alleen indien voorafgegaan door een maaltijd!!",null,null,16,"Huiswijn, bieren en frisdranken als forfait",{"$nulls":6},{"v":3.8,"d":"3.80"}]
[{"$nulls":18},17]
[{"$nulls":18},18,"Koffie 3 X bediend met koekjes",{"$nulls":6},{"v":3.9,"d":"3.90"}]
[]
[{"$nulls":18},1,"Dit menu kunt u samenstellen en wijzigen via de tool Barbecue's"]
[{"$nulls":18},2,"Prijs per volwassene:",{"$nulls":5},{"v":57.599999999999994,"d":"€ 57.60"}]
[{"$nulls":18},3]
[null,"Nog geen keuze gemaakt",{"$nulls":16},4,"2 aperitieven per persoon",null,null,"vrije keuze",{"$nulls":3},{"v":12,"d":"€ 12.00"}]
[null,"Koffie 3 X bediend",{"$nulls":5},"€ ",{"v":2.9,"d":"2.90"},{"$nulls":9},5,"Nootjes, chips en zoutkoekjes zoveel u wenst,  per pers."]
[null,"Koffie 3 X bediend met koekjes",{"$nulls":5},"€ ",{"v":3.9,"d":"3.90"},{"$nulls":9},6]
[null,"Koffie 3 X bediend met pralines",{"$nulls":5},"€ ",{"v":4.4,"d":"4.40"},{"$nulls":9},7]
[{"$nulls":18},8,"- Worst",{"$nulls":6},{"v":36.9,"d":"36.90"}]
[{"$nulls":18},9,"- Kippenboutjes"]
[{"$nulls":18},10,"- Gemarineerde kotelet  "]
["Alle drank na de maaltijd komt op één rekening en wordt door de organisator van het feest betaald",{"$nulls":14},"één rekening",null,null,11,"- Lamskoteletjes "]
["Elke gast die na de maaltijd een drankje bestelt rekent direct af aan de bar",{"$nulls":14},"direct afrekenen",null,null,12,"- Varkensbrochet"]
["Forfait voor drank naar believen (alle bieren en frisdranken van de drankkaart in de zaal) na een maaltijd. pp: ",{"$nulls":13},{"v":18.2,"d":"18.20"},{"v":18.2,"d":"18.20"},null,null,13,"frietjes (supplement)",{"$nulls":6},{"v":1,"d":"1.00"}]
["Indien  er geen volwaardige maaltijd wordt genomen, dienen er minstens 4 belegde broodjes genomen te worden en verhoogt het drankforfait tot € 28,00 ",{"$nulls":17},14,"Groenten en sausen"]
["'s middags tot 21 u - 's avonds onbeperkt. Let op! Artikel 8 van de verkoopsvoorwaarden (zie laatste bladzijde) kan hier van toepassing zijn !!!!",{"$nulls":17},15]
[{"$nulls":18},16,"Huiswijn, bieren en frisdranken als forfait",{"$nulls":6},{"v":3.8,"d":"3.80"}]
["Neem contact op met de zaakvoerder op tel nr 0475/618058",{"$nulls":14},"x",null,null,17]
["om hier zeker geen misverstanden over te hebben!",{"$nulls":17},18,"Koffie 3 X bediend met koekjes",{"$nulls":6},{"v":3.9,"d":"3.90"}]
[]
[{"$nulls":18},1,"Dit menu kunt u samenstellen en wijzigen via de tool Barbecue's"]
["Verbruik van DJ  ten laste van de klant",{"$nulls":17},2,"Prijs per volwassene:",{"$nulls":5},{"v":45.599999999999994,"d":"€ 45.60"}]
[{"$nulls":18},3]
["Voor onze vegetarische klanten:",{"$nulls":17},4,0,{"$nulls":6},{"v":0,"d":"€ 0.00"}]
[{"$nulls":18},5," en diverse warme en koude hapjes"]
["- Voor onze vegetarische klanten bereiden wij graag een aparte schotel. ",{"$nulls":17},6,"of Receptie E met aperitiefglaasjes"]
["Wij vragen wel met aandrang om op voorhand te melden als er vegetariërs zijn.",{"$nulls":17},7]
["Zij eten mee aan de prijs van de rest van de groep.",{"$nulls":17},8,"- Worst",{"$nulls":6},{"v":36.9,"d":"36.90"}]
[{"$nulls":18},9,"- Kippenboutjes"]
[{"$nulls":18},10,"- Gemarineerde kotelet  "]
[{"$nulls":18},11,"- Lamskoteletjes "]
[{"$nulls":18},12,"- Varkensbrochet"]
["Mensen met een speciaal dieet:",{"$nulls":17},13,"frietjes (supplement)",{"$nulls":6},{"v":1,"d":"1.00"}]
[{"$nulls":18},14,"Groenten en sausen"]
["Wij houden rekening met speciale wensen van mensen die een dieet volgen, ",{"$nulls":17},15]
["maar alleen indien op voorhand gemeld. ",{"$nulls":17},16,"Huiswijn, bieren en frisdranken als forfait",{"$nulls":6},{"v":3.8,"d":"3.80"}]
[{"$nulls":18},17]
["Halal kan ook, onder toezicht van een moslim bereid.",{"$nulls":17},18,"Koffie 3 X bediend met koekjes",{"$nulls":6},{"v":3.9,"d":"3.90"}]
[]
["ja"]
["nee",{"$nulls":17},1,"Dit menu kunt u samenstellen en wijzigen via de tool Barbecue's"]
[{"$nulls":18},2,"Prijs per volwassene:",{"$nulls":5},{"v":57.599999999999994,"d":"€ 57.60"}]
[{"$nulls":18},3]
[{"$nulls":18},4,"1 aperitief per persoon",null,"vrije keuze",{"$nulls":4},{"v":6,"d":"€ 6.00"}]
[{"$nulls":18},5,"Nootjes, chips en zoutkoekjes zoveel u wenst,  per pers."]
[{"$nulls":18},6]
[{"$nulls":18},7]
[{"$nulls":18},8,"- Brochette met gepelde scampi's",{"$nulls":6},{"v":6,"d":"6.00"}]
[{"$nulls":18},9,"- Stukje zalm en papillotte"]
[{"$nulls":18},10,"- Worst",{"$nulls":6},{"v":36.9,"d":"36.90"}]
[{"$nulls":18},11,"- Lamskoteletjes "]
[{"$nulls":18},12,"- Varkensbrochet"]
[{"$nulls":18},13,"frietjes (supplement)",{"$nulls":6},{"v":1,"d":"1.00"}]
[{"$nulls":18},14,"Groenten en sausen"]
[{"$nulls":18},15]
[{"$nulls":18},16,"Huiswijn, bieren en frisdranken als forfait",{"$nulls":6},{"v":3.8,"d":"3.80"}]
[{"$nulls":18},17]
["Exclusiviteit voor beide zalen:",{"$nulls":4},{"v":750,"d":"750.00"},{"$nulls":12},18,"Koffie 3 X bediend met koekjes",{"$nulls":6},{"v":3.9,"d":"3.90"}]
[]
[{"$nulls":18},1,"Dit menu kunt u samenstellen en wijzigen via de tool Barbecue's"]
[{"$nulls":18},2,"Prijs per volwassene:",{"$nulls":5},{"v":63.599999999999994,"d":"€ 63.60"}]
[{"$nulls":18},3]
[{"$nulls":18},4,"2 aperitieven per persoon",null,null,"vrije keuze",{"$nulls":3},{"v":12,"d":"€ 12.00"}]
[{"$nulls":18},5,"Nootjes, chips en zoutkoekjes zoveel u wenst,  per pers."]
[{"$nulls":18},6]
[{"$nulls":18},7]
[{"$nulls":18},8,"- Brochette met gepelde scampi's",{"$nulls":6},{"v":6,"d":"6.00"}]
[{"$nulls":18},9,"- Stukje zalm en papillotte"]
[{"$nulls":18},10,"- Worst",{"$nulls":6},{"v":36.9,"d":"36.90"}]
[{"$nulls":18},11,"- Lamskoteletjes "]
[{"$nulls":18},12,"- Varkensbrochet"]
[{"$nulls":18},13,"frietjes (supplement)",{"$nulls":6},{"v":1,"d":"1.00"}]
[{"$nulls":18},14,"Groenten en sausen"]
[{"$nulls":18},15]
[{"$nulls":18},16,"Huiswijn, bieren en frisdranken als forfait",{"$nulls":6},{"v":3.8,"d":"3.80"}]
[{"$nulls":18},17]
[{"$nulls":18},18,"Koffie 3 X bediend met koekjes",{"$nulls":6},{"v":3.9,"d":"3.90"}]
[]
[{"$nulls":18},1,"Dit menu kunt u samenstellen en wijzigen via de tool Barbecue's"]
[{"$nulls":18},2,"Prijs per volwassene:",{"$nulls":5},{"v":51.599999999999994,"d":"€ 51.60"}]
[{"$nulls":18},3]
[{"$nulls":18},4,0,{"$nulls":6},{"v":0,"d":"€ 0.00"}]
[{"$nulls":18},5," en diverse warme en koude hapjes"]
[{"$nulls":18},6,"of Receptie E met aperitiefglaasjes"]
[{"$nulls":18},7]
[{"$nulls":18},8,"- Brochette met gepelde scampi's",{"$nulls":6},{"v":6,"d":"6.00"}]
[{"$nulls":18},9,"- Stukje zalm en papillotte"]
[{"$nulls":18},10,"- Worst",{"$nulls":6},{"v":36.9,"d":"36.90"}]
[{"$nulls":18},11,"- Lamskoteletjes "]
[{"$nulls":18},12,"- Varkensbrochet"]
[{"$nulls":18},13,"frietjes (supplement)",{"$nulls":6},{"v":1,"d":"1.00"}]
[{"$nulls":18},14,"Groenten en sausen"]
[{"$nulls":18},15]
[{"$nulls":18},16,"Huiswijn, bieren en frisdranken als forfait",{"$nulls":6},{"v":3.8,"d":"3.80"}]
[{"$nulls":18},17]
[{"$nulls":18},18,"Koffie 3 X bediend met koekjes",{"$nulls":6},{"v":3.9,"d":"3.90"}]
[]
[{"$nulls":18},1,"Dit menu kunt u samenstellen en wijzigen via de tool Barbecue's"]
[{"$nulls":18},2,"Prijs per volwassene:",{"$nulls":5},{"v":46.8,"d":"€ 46.80"}]
[{"$nulls":18},3]
[{"$nulls":18},4,"1 aperitief per persoon",null,"vrije keuze",{"$nulls":4},{"v":6,"d":"€ 6.00"}]
[{"$nulls":18},5,"Nootjes, chips en zoutkoekjes zoveel u wenst,  per pers."]
[{"$nulls":18},6]
[{"$nulls":18},7]
[{"$nulls":18},8,"- Worst",{"$nulls":6},{"v":36.9,"d":"36.90"}]
[{"$nulls":18},9,"- Kippenboutjes"]
[{"$nulls":18},10,"- Gemarineerde kotelet  "]
[{"$nulls":18},11,"- Lamskoteletjes "]
[{"$nulls":18},12,"- Varkensbrochet"]
[{"$nulls":18},13,"Koude aardappelen"]
[{"$nulls":18},14,"Groenten en sausen"]
[{"$nulls":18},15]
[{"$nulls":18},16,"Bio wijnen, bieren en frisdranken als forfait",{"$nulls":6},{"v":0,"d":"0.00"}]
[{"$nulls":18},17]
[{"$nulls":18},18,"Koffie 3 X bediend met koekjes",{"$nulls":6},{"v":3.9,"d":"3.90"}]
[]
[{"$nulls":18},1,"Dit menu kunt u samenstellen en wijzigen via de tool Barbecue's"]
[{"$nulls":18},2,"Prijs per volwassene:",{"$nulls":5},{"v":52.8,"d":"€ 52.80"}]
[{"$nulls":18},3]
[{"$nulls":18},4,"2 aperitieven per persoon",null,null,"vrije keuze",{"$nulls":3},{"v":12,"d":"€ 12.00"}]
[{"$nulls":18},5,"Nootjes, chips en zoutkoekjes zoveel u wenst,  per pers."]
[{"$nulls":18},6]
[{"$nulls":18},7]
[{"$nulls":18},8,"- Worst",{"$nulls":6},{"v":36.9,"d":"36.90"}]
[{"$nulls":18},9,"- Kippenboutjes"]
[{"$nulls":18},10,"- Gemarineerde kotelet  "]
[{"$nulls":18},11,"- Lamskoteletjes "]
[{"$nulls":18},12,"- Varkensbrochet"]
[{"$nulls":18},13,"Koude aardappelen"]
[{"$nulls":18},14,"Groenten en sausen"]
[{"$nulls":18},15]
[{"$nulls":18},16,"Bio wijnen, bieren en frisdranken als forfait",{"$nulls":6},{"v":0,"d":"0.00"}]
[{"$nulls":18},17]
[{"$nulls":18},18,"Koffie 3 X bediend met koekjes",{"$nulls":6},{"v":3.9,"d":"3.90"}]
[]
["Late night snacks",null,null,"overal op regel 300",{"$nulls":14},1,"Dit menu kunt u samenstellen en wijzigen via de tool Barbecue's"]
["Croque uit het vuistje",{"$nulls":3},{"v":2.8,"d":"2.80"},{"$nulls":13},2,"Prijs per volwassene:",{"$nulls":5},{"v":40.8,"d":"€ 40.80"}]
["Pizza Margherita",{"$nulls":3},{"v":4.5,"d":"4.50"},{"$nulls":13},3]
["Belegde broodjes (2 pp)",{"$nulls":3},{"v":4.5,"d":"4.50"},{"$nulls":13},4,0,{"$nulls":6},{"v":0,"d":"€ 0.00"}]
["Braadworst",{"$nulls":3},{"v":3,"d":"3.00"},{"$nulls":13},5," en diverse warme en koude hapjes"]
["Scampi (3pp) Nantua met farfale en broccoli",{"$nulls":3},{"v":4.5,"d":"4.50"},{"$nulls":13},6,"of Receptie E met aperitiefglaasjes"]
[{"$nulls":18},7]
[{"$nulls":18},8,"- Worst",{"$nulls":6},{"v":36.9,"d":"36.90"}]
[{"$nulls":18},9,"- Kippenboutjes"]
[{"$nulls":18},10,"- Gemarineerde kotelet  "]
[{"$nulls":18},11,"- Lamskoteletjes "]
[{"$nulls":18},12,"- Varkensbrochet"]
[{"$nulls":18},13,"Koude aardappelen"]
[{"$nulls":18},14,"Groenten en sausen"]
[{"$nulls":18},15]
[{"$nulls":18},16,"Bio wijnen, bieren en frisdranken als forfait",{"$nulls":6},{"v":0,"d":"0.00"}]
[{"$nulls":18},17]
[{"$nulls":18},18,"Koffie 3 X bediend met koekjes",{"$nulls":6},{"v":3.9,"d":"3.90"}]
[]
[]
[{"$nulls":18},1,"Dit menu kunt u samenstellen en wijzigen via de tool Barbecue's"]
[{"$nulls":18},2,"Prijs per volwassene:",{"$nulls":5},{"v":52.8,"d":"€ 52.80"}]
[{"$nulls":18},3]
[{"$nulls":18},4,"1 aperitief per persoon",null,"vrije keuze",{"$nulls":4},{"v":6,"d":"€ 6.00"}]
[{"$nulls":18},5,"Nootjes, chips en zoutkoekjes zoveel u wenst,  per pers."]
[{"$nulls":18},6]
[{"$nulls":18},7]
[{"$nulls":18},8,"- Brochette met gepelde scampi's",{"$nulls":6},{"v":6,"d":"6.00"}]
[{"$nulls":18},9,"- Stukje zalm en papillotte"]
[{"$nulls":18},10,"- Worst",{"$nulls":6},{"v":36.9,"d":"36.90"}]
[{"$nulls":18},11,"- Lamskoteletjes "]
[{"$nulls":18},12,"- Varkensbrochet"]
[{"$nulls":18},13,"Koude aardappelen"]
[{"$nulls":18},14,"Groenten en sausen"]
[{"$nulls":18},15]
[{"$nulls":18},16,"Bio wijnen, bieren en frisdranken als forfait",{"$nulls":6},{"v":0,"d":"0.00"}]
[{"$nulls":18},17]
[{"$nulls":18},18,"Koffie 3 X bediend met koekjes",{"$nulls":6},{"v":3.9,"d":"3.90"}]
[]
[{"$nulls":18},1,"Dit menu kunt u samenstellen en wijzigen via de tool Barbecue's"]
[{"$nulls":18},2,"Prijs per volwassene:",{"$nulls":5},{"v":58.8,"d":"€ 58.80"}]
[{"$nulls":18},3]
[{"$nulls":18},4,"2 aperitieven per persoon",null,null,"vrije keuze",{"$nulls":3},{"v":12,"d":"€ 12.00"}]
[{"$nulls":18},5,"Nootjes, chips en zoutkoekjes zoveel u wenst,  per pers."]
[{"$nulls":18},6]
[{"$nulls":18},7]
[{"$nulls":18},8,"- Brochette met gepelde scampi's",{"$nulls":6},{"v":6,"d":"6.00"}]
[{"$nulls":18},9,"- Stukje zalm en papillotte"]
[{"$nulls":18},10,"- Worst",{"$nulls":6},{"v":36.9,"d":"36.90"}]
[{"$nulls":18},11,"- Lamskoteletjes "]
[{"$nulls":18},12,"- Varkensbrochet"]
[{"$nulls":18},13,"Koude aardappelen"]
[{"$nulls":18},14,"Groenten en sausen"]
[{"$nulls":18},15]
[{"$nulls":18},16,"Bio wijnen, bieren en frisdranken als forfait",{"$nulls":6},{"v":0,"d":"0.00"}]
[{"$nulls":18},17]
[{"$nulls":18},18,"Koffie 3 X bediend met koekjes",{"$nulls":6},{"v":3.9,"d":"3.90"}]
[]
[{"$nulls":18},1,"Dit menu kunt u samenstellen en wijzigen via de tool Barbecue's"]
[{"$nulls":18},2,"Prijs per volwassene:",{"$nulls":5},{"v":46.8,"d":"€ 46.80"}]
[{"$nulls":18},3]
[{"$nulls":18},4,0,{"$nulls":6},{"v":0,"d":"€ 0.00"}]
[{"$nulls":18},5," en diverse warme en koude hapjes"]
[{"$nulls":18},6,"of Receptie E met aperitiefglaasjes"]
[{"$nulls":18},7]
[{"$nulls":18},8,"- Brochette met gepelde scampi's",{"$nulls":6},{"v":6,"d":"6.00"}]
[{"$nulls":18},9,"- Stukje zalm en papillotte"]
[{"$nulls":18},10,"- Worst",{"$nulls":6},{"v":36.9,"d":"36.90"}]
[{"$nulls":18},11,"- Lamskoteletjes "]
[{"$nulls":18},12,"- Varkensbrochet"]
[{"$nulls":18},13,"Koude aardappelen"]
[{"$nulls":18},14,"Groenten en sausen"]
[{"$nulls":18},15]
[{"$nulls":18},16,"Bio wijnen, bieren en frisdranken als forfait",{"$nulls":6},{"v":0,"d":"0.00"}]
[{"$nulls":18},17]
[{"$nulls":18},18,"Koffie 3 X bediend met koekjes",{"$nulls":6},{"v":3.9,"d":"3.90"}]
[]
[]
[{"$nulls":18},1,"Dit menu kunt u samenstellen en wijzigen via de tool Barbecue's"]
[{"$nulls":18},2,"Prijs per volwassene:",{"$nulls":5},{"v":47.8,"d":"€ 47.80"}]
["Betaling op de dag zelf (cash of bancontact), u bekomt 2% korting op het totaal",{"$nulls":17},3]
["Storting op BE 48 4631 1391 2127 min. 7 dagen voor het feest, 2% korting",{"$nulls":17},4,"1 aperitief per persoon",null,"vrije keuze",{"$nulls":4},{"v":6,"d":"€ 6.00"}]
["Betaling na het feest. Gelieve 40 % voorschot te storten op BE48 4631 1391 2127. Geen korting.",{"$nulls":17},5,"Nootjes, chips en zoutkoekjes zoveel u wenst,  per pers."]
[{"$nulls":18},6]
[{"$nulls":18},7]
[{"$nulls":18},8,"- Worst",{"$nulls":6},{"v":36.9,"d":"36.90"}]
[{"$nulls":18},9,"- Kippenboutjes"]
[{"$nulls":18},10,"- Gemarineerde kotelet  "]
[{"$nulls":18},11,"- Lamskoteletjes "]
[{"$nulls":18},12,"- Varkensbrochet"]
[{"$nulls":18},13,"frietjes (supplement)",{"$nulls":6},{"v":1,"d":"1.00"}]
[{"$nulls":18},14,"Groenten en sausen"]
[{"$nulls":18},15]
[{"$nulls":18},16,"Bio wijnen, bieren en frisdranken als forfait",{"$nulls":6},{"v":0,"d":"0.00"}]
[{"$nulls":18},17]
[{"$nulls":18},18,"Koffie 3 X bediend met koekjes",{"$nulls":6},{"v":3.9,"d":"3.90"}]
[]
[{"$nulls":18},1,"Dit menu kunt u samenstellen en wijzigen via de tool Barbecue's"]
[{"$nulls":18},2,"Prijs per volwassene:",{"$nulls":5},{"v":53.8,"d":"€ 53.80"}]
[{"$nulls":18},3]
[{"$nulls":18},4,"2 aperitieven per persoon",null,null,"vrije keuze",{"$nulls":3},{"v":12,"d":"€ 12.00"}]
[{"$nulls":18},5,"Nootjes, chips en zoutkoekjes zoveel u wenst,  per pers."]
[{"$nulls":18},6]
[{"$nulls":18},7]
[{"$nulls":18},8,"- Worst",{"$nulls":6},{"v":36.9,"d":"36.90"}]
[{"$nulls":18},9,"- Kippenboutjes"]
[{"$nulls":18},10,"- Gemarineerde kotelet  "]
[{"$nulls":18},11,"- Lamskoteletjes "]
[{"$nulls":18},12,"- Varkensbrochet"]
[{"$nulls":18},13,"frietjes (supplement)",{"$nulls":6},{"v":1,"d":"1.00"}]
[{"$nulls":18},14,"Groenten en sausen"]
[{"$nulls":18},15]
[{"$nulls":18},16,"Bio wijnen, bieren en frisdranken als forfait",{"$nulls":6},{"v":0,"d":"0.00"}]
[{"$nulls":18},17]
[{"$nulls":18},18,"Koffie 3 X bediend met koekjes",{"$nulls":6},{"v":3.9,"d":"3.90"}]
[]
[{"$nulls":18},1,"Dit menu kunt u samenstellen en wijzigen via de tool Barbecue's"]
[{"$nulls":18},2,"Prijs per volwassene:",{"$nulls":5},{"v":41.8,"d":"€ 41.80"}]
[{"$nulls":18},3]
[{"$nulls":18},4,0,{"$nulls":6},{"v":0,"d":"€ 0.00"}]
[{"$nulls":18},5," en diverse warme en koude hapjes"]
[{"$nulls":18},6,"of Receptie E met aperitiefglaasjes"]
[{"$nulls":18},7]
[{"$nulls":18},8,"- Worst",{"$nulls":6},{"v":36.9,"d":"36.90"}]
[{"$nulls":18},9,"- Kippenboutjes"]
[{"$nulls":18},10,"- Gemarineerde kotelet  "]
[{"$nulls":18},11,"- Lamskoteletjes "]
[{"$nulls":18},12,"- Varkensbrochet"]
[{"$nulls":18},13,"frietjes (supplement)",{"$nulls":6},{"v":1,"d":"1.00"}]
[{"$nulls":18},14,"Groenten en sausen"]
[{"$nulls":18},15]
[{"$nulls":18},16,"Bio wijnen, bieren en frisdranken als forfait",{"$nulls":6},{"v":0,"d":"0.00"}]
[{"$nulls":18},17]
[{"$nulls":18},18,"Koffie 3 X bediend met koekjes",{"$nulls":6},{"v":3.9,"d":"3.90"}]
[]
[]
[{"$nulls":18},1,"Dit menu kunt u samenstellen en wijzigen via de tool Barbecue's"]
[{"$nulls":18},2,"Prijs per volwassene:",{"$nulls":5},{"v":53.8,"d":"€ 53.80"}]
[{"$nulls":18},3]
[{"$nulls":18},4,"1 aperitief per persoon",null,"vrije keuze",{"$nulls":4},{"v":6,"d":"€ 6.00"}]
[{"$nulls":18},5,"Nootjes, chips en zoutkoekjes zoveel u wenst,  per pers."]
[{"$nulls":18},6]
[{"$nulls":18},7]
[{"$nulls":18},8,"- Brochette met gepelde scampi's",{"$nulls":6},{"v":6,"d":"6.00"}]
[{"$nulls":18},9,"- Stukje zalm en papillotte"]
[{"$nulls":18},10,"- Worst",{"$nulls":6},{"v":36.9,"d":"36.90"}]
[{"$nulls":18},11,"- Lamskoteletjes "]
[{"$nulls":18},12,"- Varkensbrochet"]
[{"$nulls":18},13,"frietjes (supplement)",{"$nulls":6},{"v":1,"d":"1.00"}]
[{"$nulls":18},14,"Groenten en sausen"]
[{"$nulls":18},15]
[{"$nulls":18},16,"Bio wijnen, bieren en frisdranken als forfait",{"$nulls":6},{"v":0,"d":"0.00"}]
[{"$nulls":18},17]
[{"$nulls":18},18,"Koffie 3 X bediend met koekjes",{"$nulls":6},{"v":3.9,"d":"3.90"}]
[]
[{"$nulls":18},1,"Dit menu kunt u samenstellen en wijzigen via de tool Barbecue's"]
[{"$nulls":18},2,"Prijs per volwassene:",{"$nulls":5},{"v":59.8,"d":"€ 59.80"}]
[{"$nulls":18},3]
[{"$nulls":18},4,"2 aperitieven per persoon",null,null,"vrije keuze",{"$nulls":3},{"v":12,"d":"€ 12.00"}]
[{"$nulls":18},5,"Nootjes, chips en zoutkoekjes zoveel u wenst,  per pers."]
[{"$nulls":18},6]
[{"$nulls":18},7]
[{"$nulls":18},8,"- Brochette met gepelde scampi's",{"$nulls":6},{"v":6,"d":"6.00"}]
[{"$nulls":18},9,"- Stukje zalm en papillotte"]
[{"$nulls":18},10,"- Worst",{"$nulls":6},{"v":36.9,"d":"36.90"}]
[{"$nulls":18},11,"- Lamskoteletjes "]
[{"$nulls":18},12,"- Varkensbrochet"]
[{"$nulls":18},13,"frietjes (supplement)",{"$nulls":6},{"v":1,"d":"1.00"}]
[{"$nulls":18},14,"Groenten en sausen"]
[{"$nulls":18},15]
[{"$nulls":18},16,"Bio wijnen, bieren en frisdranken als forfait",{"$nulls":6},{"v":0,"d":"0.00"}]
[{"$nulls":18},17]
[{"$nulls":18},18,"Koffie 3 X bediend met koekjes",{"$nulls":6},{"v":3.9,"d":"3.90"}]
[]
[{"$nulls":18},1,"Dit menu kunt u samenstellen en wijzigen via de tool Barbecue's"]
[{"$nulls":18},2,"Prijs per volwassene:",{"$nulls":5},{"v":47.8,"d":"€ 47.80"}]
[{"$nulls":18},3]
[{"$nulls":18},4,0,{"$nulls":6},{"v":0,"d":"€ 0.00"}]
[{"$nulls":18},5," en diverse warme en koude hapjes"]
[{"$nulls":18},6,"of Receptie E met aperitiefglaasjes"]
[{"$nulls":18},7]
[{"$nulls":18},8,"- Brochette met gepelde scampi's",{"$nulls":6},{"v":6,"d":"6.00"}]
[{"$nulls":18},9,"- Stukje zalm en papillotte"]
[{"$nulls":18},10,"- Worst",{"$nulls":6},{"v":36.9,"d":"36.90"}]
[{"$nulls":18},11,"- Lamskoteletjes "]
[{"$nulls":18},12,"- Varkensbrochet"]
[{"$nulls":18},13,"frietjes (supplement)",{"$nulls":6},{"v":1,"d":"1.00"}]
[{"$nulls":18},14,"Groenten en sausen"]
[{"$nulls":18},15]
[{"$nulls":18},16,"Bio wijnen, bieren en frisdranken als forfait",{"$nulls":6},{"v":0,"d":"0.00"}]
[{"$nulls":18},17]
[{"$nulls":18},18,"Koffie 3 X bediend met koekjes",{"$nulls":6},{"v":3.9,"d":"3.90"}]
{"$rows_empty":8}
["Geen voorkeur"]
["Cd’s van het Katelijnenhof"]
["Eigen Cd's"]
["Joe 60&70",1]
["Joe 80&90",2]
["Joe easy",3]
["Joe lage landen",4]
["MNM",5]
["MNM hits",6]
["Nostalgie",7]
["Q-foute radio",8]
["Q-Max hits",9]
["Q Music",10]
["Radio 2 Bene Bene",11]
["Radio 2 West-Vlaanderen",12]
["Radio 1",13]
["Studio Brussel",14]
["Studio Brussel de tijdloze",15]
["Top Radio",16]
["Top Versuz Radio",17]
["NRJ",18]
["Klara",19]
["Radio Bingo",20]
["Joe",40]

{"sheet":"Algemene verkoopsvoorwaarden","index":2,"n_rows":38,"n_cols":1,"rows_kept":38}
["Algemene verkoopsvoorwaarden vanaf 01/11/2022:"]
[]
["1) Onze facturen zijn contant te betalen bij levering van de goederen, dit is de dag van het event. Bijgevolg zal in geval van laattijdige betaling van rechtswege en zonder voorafgaande ingebrekestelling een intrest aangerekend worden van 12% per jaar op de bedragen, verschuldigd acht dagen na de vervaldag van de facturen. Tevens zal bij gebrek aan betaling na aanmaning bij gewone brief, het verschuldigde bedrag van rechtswege verhoogd worden met een forfaitaire vergoeding van 12 % met een minimum van € 50  voor bijkomende administratieve kosten, debiteurenbewaking en commerciële stoornissen. Wij behouden ons het recht voor op elk moment de leveringen te staken. Elke klacht over de kwaliteit van de geleverde goederen moet uiterlijk 24 uur na de levering worden overgemaakt. "]
["Klachten in verband met facturatie kunnen slechts in aanmerking worden genomen zo zij binnen de acht dagen na ontvangst van de goederen bij aangetekende brief worden meegedeeld. In geval van betwisting zijn uitsluitend de rechtbanken van Kortrijk bevoegd. De leveringen  geschieden op risico van de bestemmeling. Er wordt uitdrukkelijk overeengekomen dat de klant door het plaatsen van een bestelling onze algemene verkoopsvoorwaarden erkent. Elke wijziging hieraan moet voorafgaandelijk in een schriftelijk akkoord worden vastgelegd."]
[]
["2) Annulatie dient schriftelijk en gedateerd te geschieden. "]
["In geval van annulatie minder dan 60 dagen voor de activiteit blijft het voorschot eigendom van het Katelijnenhof. Voor annulatie minder dan 10 dagen voor de activiteit is de klant in alle gevallen verplicht 35 % van de reservatie waarde van de gehele manifestatie te vergoeden. Bij annulatie minder dan 5 dagen voor  de activiteit is de klant in alle gevallen verplicht de reservatie waarde van de gehele manifestatie te vergoeden."]
[]
["3) Iedere levering van dranken, voedingswaren of diensten in de  zalen is uitsluitend voorbehouden aan het Katelijnenhof, tenzij er een andere schriftelijke overeenkomst is."]
[]
["4) De klant is eraan gehouden voor iedere dansavond met groot orkest een aanvraag tot toelating in te dienen bij SABAM, Rijselsestraat 51, 8500 Kortrijk, Tel : 056/210738 en alle kosten voortvloeiend uit deze aanvraag te dragen.  Voor een gewone disc-jockey betalen wij jaarlijks een vaste bijdrage. Het verbruik (drank en voeding) van de DJ is ten laste van de klant. Gelet op de nieuwe geluidsnormen, van kracht op 01/01/2013, moet de klant de DJ of elke andere persoon of toestel dat  geluid produceert verplichten zich aan deze normen te houden. De toelating voor onze zaal is – maximaal geluidsniveau > 85 dB(A) LAeq,15min en ≤ 95 dB(A) LAeq,15min. Dit is ruim voldoende. Alle boetes ten gevolge een overschrijding van deze voorwaarde zijn ten laste van de klant. Er wordt een professionele houding van elke DJ of geluidstechnicus verwacht."]
["Het is niet toegestaan om muziek af te spelen via B2C diensten zoals Spotify, Deezer, Youtube… Dit geldt voor elke horecazaak, winkel enz… Doet de klant of zijn DJ dat toch en er volgt een boete, dan is deze ten laste van de klant."]
[]
["5) Alle door de klant meegebrachte materiaal dient door de klant te worden verzekerd en direct na het beëindigen van de manifestatie te worden verwijderd uit de zaal. Het Katelijnenhof behoudt het recht de leverancier te aanvaarden en voorschriften te geven om de lokalen ongeschonden te behouden. Het is strikt verboden om versieringen aan de muren of plafonds te bevestigen met duimspijkers of kleefband ! Bij beschadigingen van een deel van de muur wordt het geheel als beschadigd beschouwd."]
[]
["6) Het gebruik van de zaal is strikt beperkt tot de in deze overeenkomst vastgestelde functie. Iedere wijziging in de voorheen verklaarde bestemming brengt automatisch het recht tot prijsherziening met zich mee."]
[]
["7) Het gebruik van de zaal is gratis van zodra het verbruik hoger ligt dan € 1250. Indien het verbruik lager ligt, wordt het factuurbedrag opgetrokken tot € 1250. Indien uw feest cash (max € 3000) of met bancontact betaald wordt op de dag zelf krijgt u een korting van 2 % op de gehele factuur. Voor traiteurdienst gelden andere kortingsregels."]
[]
["8) Sluitingsuren zaal:"]
[]
["In geval van een event dat start ’s morgens start tussen 7u en 10u59 (vb. ontbijt)"]
["Event kan maximaal 6 uur duren."]
[]
["In geval van een event dat start op de middag start tussen 11u en 13u59"]
["De bar sluit om 18u00, de zaal sluit om 18u30."]
[]
["In geval van een event dat start in de namiddag start tussen 14u en 17u59 (vb. babyborrel)"]
["Event kan maximaal 6 uur duren."]
[]
["In geval van een event dat start ’s avonds start vanaf 18u"]
["De bar sluit om 2u30, de zaal sluit om 3u."]
[]
["Indien het event toch langer uitloopt dan het sluitingsuur wordt per begonnen uur een toeslag van € 125,00 (btw incl.) aangerekend. Geen enkel drankenforfait geldt dan nog."]
[]
["9) De klant is verantwoordelijk voor de goede orde in en rond de feestzaal. Schade veroorzaakt door een der aanwezigen kan verhaald worden op deze persoon maar als deze om gelijk welke reden de schade niet kan vergoeden (vb: te weinig financiële middelen of de veroorzaker is onbekend) kan deze schade eveneens ondeelbaar worden verhaald op de klant , zijnde de persoon die het feest heeft besteld. "]
[]
["10) Energietoeslag. De energieprijzen zijn momenteel op hol geslagen. Het kan zijn dat wij genoodzaakt zijn een energietoeslag voor het gebruik van de zaal aan te rekenen. U wordt in voorkomend geval op voorhand verwittigd en mag uw feest kosteloos annuleren indien u deze niet wenst te betalen."]

{"sheet":"Reservatievoorstel","index":3,"n_rows":56,"n_cols":18,"rows_kept":56,"merged":[[2,14,3,14],[2,15,3,15],[2,16,3,16],[2,17,3,17],[9,12,9,13],[12,9,12,11],[12,12,12,16],[14,4,14,8],[14,9,14,17],[16,9,16,17],[23,14,23,17],[25,9,26,17],[32,0,32,8],[34,0,34,2],[36,0,37,7],[40,0,43,8]]}
[null,null,{"$f":"\"Reservatievoorstel. \"&matrixen!B1","v":"Reservatievoorstel. Prijzen geldig tot 31/03/2023"},{"$nulls":7},"Uitsplitsing per BTW tarief.",{"$nulls":4},"Totaalprijs per vol:",{"$f":"E9","v":{"v":40.699999999999996,"d":"40.70"}}]
["Naam Klant:",null,{"$f":"'selecteer hier uw barbecue'!F74","v":0},{"$nulls":3},"Katelijnenhof",{"$nulls":8},{"$f":"IF(Q2>0,\"Prijs drankforfait na de maaltijd  21% BTW:\",\"\")","v":""},{"$f":"'selecteer hier uw barbecue'!D58","v":{"v":0,"d":"0.00"}}]
["Adres:",null,{"$f":"'selecteer hier uw barbecue'!F75","v":0},{"$nulls":3},"Heirweg 172",{"$nulls":5},"Menu",null,"Dep. B",{"$f":"IF(Q2>0,\"Drank- forfait:\",\"\")","v":""},"Totaal aan 21%","Dep. A"]
["Stad:",null,{"$f":"'selecteer hier uw barbecue'!F76","v":0},{"$nulls":3},"8800 Roeselare",{"$nulls":3},"aantal","totaal:","deel 12 %","deel 21%"]
["Tel nr:",null,{"$f":"'selecteer hier uw barbecue'!F77","v":0},{"$nulls":3},"info@katelijnenhof.be",null,null,"Vol",{"$f":"D9","v":10},{"$f":"Q1-Q2","v":{"v":40.699999999999996,"d":"40.70"}},{"$f":"ROUND(L5*0.65,2)","v":26.46},{"$f":"L5-M5","v":{"v":14.239999999999995,"d":"14.24"}},{"$f":"K5*M5","v":{"v":264.6,"d":"264.60"}},{"$f":"Q2","v":{"v":0,"d":"0.00"}},{"$f":"N5+P5","v":{"v":14.239999999999995,"d":"14.24"}},{"$f":"K5*Q5","v":{"v":142.39999999999995,"d":"142.40"}}]
[{"$f":"'selecteer hier uw barbecue'!E79","v":"reden feest:"},null,{"$f":"'selecteer hier uw barbecue'!F79","v":0},{"$nulls":3},"Gsm 0475/618058",null,null,"JR 1/2",{"$f":"D10","v":0},{"$f":"E10-P6","v":20.35},{"$f":"ROUND(L6*0.65,2)","v":13.23},{"$f":"L6-M6","v":{"v":7.120000000000001,"d":"7.12"}},{"$f":"K6*M6","v":{"v":0,"d":"0.00"}},{"$f":"ROUND(Q2/2,2)","v":{"v":0,"d":"0.00"}},{"$f":"N6+P6","v":{"v":7.120000000000001,"d":"7.12"}},{"$f":"K6*Q6","v":{"v":0,"d":"0.00"}}]
["Datum activiteit:",null,{"$f":"'selecteer hier uw barbecue'!F64","v":"00:00:00"},{"$f":"'selecteer hier uw barbecue'!E78","v":"email:"},{"$f":"'selecteer hier uw barbecue'!F78","v":0},null,null,"aankomst om:",{"$f":"'selecteer hier uw barbecue'!F71","v":0},"JR 1/3",{"$f":"D11","v":0},{"$f":"E11-P7","v":13.57},{"$f":"ROUND(L7*0.65,2)","v":8.82},{"$f":"L7-M7","v":4.75},{"$f":"K7*M7","v":{"v":0,"d":"0.00"}},{"$f":"ROUND(Q2/3,2)","v":{"v":0,"d":"0.00"}},{"$f":"N7+P7","v":4.75},{"$f":"K7*Q7","v":{"v":0,"d":"0.00"}}]
["Totaal aantal personen:",null,null,{"$f":"D9+D10+D11+D12","v":10},"prijs:",null,null,"aan tafel om:",{"$f":"'selecteer hier uw barbecue'!F72","v":0},"JR gratis",{"$f":"D12","v":0},{"$f":"E12","v":"0,00"},{"$f":"L8*0.65","v":0},{"$f":"L8*0.35","v":{"v":0,"d":"0.00"}},{"$f":"K8*M8","v":{"v":0,"d":"0.00"}},null,{"$f":"N8+P8","v":0},{"$f":"K8*Q8","v":{"v":0,"d":"0.00"}}]
[null,null,"volwassenen:",{"$f":"'selecteer hier uw barbecue'!F66","v":10},{"$f":"'selecteer hier uw barbecue'!D7","v":{"v":40.699999999999996,"d":"40.70"}},null,null,"raming totaal 1:",{"$f":"D9*E9+D10*E10+D11*E11+D12*E12+D13","v":{"v":406.99999999999994,"d":"€ 407.00"}},null,null,"Voorschot reeds betaald:",{"$nulls":3},{"$f":"IF(Q9>0,\"Huur zaal/exclusiviteit: \",\"\")","v":"Huur zaal/exclusiviteit: "},{"$f":"I11+I12","v":{"v":843,"d":"843.00"}}]
[null,null,"JR 1/2 (6 t.e.m. 11) :",{"$f":"'selecteer hier uw barbecue'!F67","v":0},{"$f":"'selecteer hier uw barbecue'!J7","v":20.35},null,null,"ander rekenblad:",{"$f":"'selecteer hier uw barbecue'!F81","v":{"v":0,"d":"€ 0.00"}},null,null,"Gestort / betaald op:"]
[null,null,"JR 1/3 (3 t.e.m. 5) :",{"$f":"'selecteer hier uw barbecue'!F68","v":0},{"$f":"'selecteer hier uw barbecue'!H7","v":13.57},null,null,"huur zaal:",{"$f":"IF(D9+D10+D11+D12=0,0,IF((I9+I10)<matrixen!E4,matrixen!E4-I9-I10,0))","v":{"v":843,"d":"€ 843.00"}},null,null,{"$f":"IF(M9>0,\"Voorschot uitgesplitst:\",\"\")","v":""},{"$f":"IF(M9>0,\" € \"&M9*0.65 & \" x 12% => Dep. B  en € \" & M9*0.35 & \" x 21% => Dep. A.\",\"\")","v":""}]
[null,null,"JR gratis (0 t.e.m. 2) :",{"$f":"'selecteer hier uw barbecue'!F69","v":0},{"$f":"'selecteer hier uw barbecue'!F7","v":"0,00"},null,null,{"$f":"IF(I12>0,\"U koos exclusiviteit: \",\"\")","v":""},{"$f":"'selecteer hier uw barbecue'!L87","v":{"v":0,"d":"€ 0.00"}},{"$nulls":3},"Voorschot wordt gesplitst over:",{"$f":"IF(M9>0,ROUNDUP((M9+1)/L5,0),0)","v":0}," volwassenen"]
[{"$nulls":7},"raming algemeen totaal:",{"$f":"I9+I10+I11+I12","v":{"v":1250,"d":"€ 1,250.00"}},"Input GKS:",null,null,{"$f":"IF(M9*0.65 >N12*M5,\"ONMOGELIJK U bekomt negatieve waarden.\",\"\")","v":""}]
[{"$nulls":7},"raming te betalen indien contante betaling  (max € 3000 cash):",{"$f":"'selecteer hier uw barbecue'!F86","v":{"v":1225,"d":"€ 1,225.00"}},{"$f":"N12","v":0},"vol","x",{"$f":"IFERROR(M5-M9*0.65/N12,\"\")","v":""},{"v":0.12,"d":"12%"},{"$f":"IFERROR(J14*M14,\"\")","v":""},"Dep. B","Verwerking voorschot"]
[{"$nulls":3},"Voorkeur tafelschikking:",{"$f":"'selecteer hier uw barbecue'!K88","v":"geen voorkeur"},{"$nulls":4},{"$f":"IFERROR( \" Er wordt € \" & ROUND(M9*0.65/N12,2) & \" minder geboekt bij \" & N12 & \" personen omdat dit reeds als voorschot werd geboekt.\",\"\")","v":""}]
[{"$nulls":8},{"$f":"'selecteer hier uw barbecue'!B20","v":"De gast die een extra aperitief bestelt betaalt deze zelf"},{"$f":"N12","v":0},"vol","x",{"$f":"IFERROR(Q5-M9*0.35/N12,\"\")","v":""},{"v":0.21,"d":"21%"},{"$f":"IFERROR(J16*M16,\"\")","v":""},"Dep. A","Verwerking voorschot"]
[{"$f":"'selecteer hier uw barbecue'!H65","v":""},{"$nulls":7},{"$f":"IF(M9>0,\" Uw voorschot van € \" & M9 & \" wordt nog in mindering gebracht\",\"\")","v":""},{"$f":"IFERROR( \" Er wordt € \" & ROUND(M9*0.35/N12,2) & \" minder geboekt bij \" & N12 & \" personen omdat dit reeds als voorschot werd geboekt.\",\"\")","v":""}]
[{"$f":"'selecteer hier uw barbecue'!H66","v":""},{"$nulls":7},{"$f":"'selecteer hier uw barbecue'!G62","v":"Keuze achtergrondmuziek:"},{"$f":"K5-J14","v":10},{"$f":"K14","v":"vol"},"x",{"$f":"M5","v":26.46},{"$f":"N14","v":{"v":0.12,"d":"12%"}},{"$f":"J18*M18","v":{"v":264.6,"d":"264.60"}},"Dep. B"]
[{"$f":"'selecteer hier uw barbecue'!H67","v":0},{"$nulls":7},{"$f":"'selecteer hier uw barbecue'!H62","v":"Geen voorkeur"},{"$f":"K5-J16","v":10},{"$f":"K16","v":"vol"},"x",{"$f":"Q5","v":{"v":14.239999999999995,"d":"14.24"}},{"v":0.21,"d":"21%"},{"v":142.39999999999995,"d":"142.40"},"Dep. A"]
[{"$f":"'selecteer hier uw barbecue'!H71","v":0},{"$nulls":7},{"$f":"VLOOKUP(I19,matrixen!A500:B523,2,FALSE)","v":0},{"$f":"K6","v":0},{"$f":"J6","v":"JR 1/2"},"x",{"$f":"M6","v":13.23},{"$f":"N14","v":{"v":0.12,"d":"12%"}},{"v":0,"d":"0.00"},"Dep. B"]
[null,null,"Barbecue met:",{"$nulls":6},{"$f":"K6","v":0},{"$f":"J6","v":"JR 1/2"},"x",{"$f":"Q6","v":{"v":7.120000000000001,"d":"7.12"}},{"v":0.21,"d":"21%"},{"v":0,"d":"0.00"},"Dep. A"]
[{"$f":"'selecteer hier uw barbecue'!H69","v":"Aardappel in de pel"},{"$nulls":8},{"$f":"K7","v":0},{"$f":"J7","v":"JR 1/3"},"x",{"$f":"M7","v":8.82},{"$f":"N14","v":{"v":0.12,"d":"12%"}},{"v":0,"d":"0.00"},"Dep. B"]
[{"$f":"'selecteer hier uw barbecue'!H70","v":"groenten en sausen"},null,null,{"$f":"IF('selecteer hier uw barbecue'!F33='selecteer hier uw barbecue'!AA40,\"Als voorgerecht een halve kreeft met kruidenboter\",\"\")","v":""},{"$nulls":5},{"$f":"K7","v":0},{"$f":"J7","v":"JR 1/3"},"x",{"$f":"Q7","v":4.75},{"v":0.21,"d":"21%"},{"v":0,"d":"0.00"},"Dep. A"]
[{"$nulls":9},{"$f":"IF(L24>0,\"1\",0)","v":"1"},{"$f":"IF(L24>0,\"x\",\"\")","v":"x"},{"$f":"Q9","v":{"v":843,"d":"843.00"}},{"$f":"IF(L24>0,\"21%\",\"\")","v":"21%"},{"$f":"IF(L24>0,\"Dep. A\",\"\")","v":"Dep. A"},{"$f":"P9","v":"Huur zaal/exclusiviteit: "}]
[{"$f":"'selecteer hier uw barbecue'!J74","v":""},{"$nulls":7},{"$f":"'selecteer hier uw barbecue'!H74","v":""},null,"Totale boekwaarde:",{"$f":"SUM(O14:O23)+L24+M9+I10","v":{"v":1250,"d":"1250.00"}},{"$f":"IF(SUM(O14:O23)+L24+M9+I10 <>I13,\" Er is iets fout met de splitsingstabel\",\"\")","v":""}]
[{"$f":"'selecteer hier uw barbecue'!J75","v":""},{"$nulls":7},{"$f":"'selecteer hier uw barbecue'!H75","v":""},{"$f":"\"De eventuele korting contant van 2 %, in het huidig voorstel is dit € \" & ROUND(I13-I14,2) & \" is nog niet in bovenstaande splitsing verwerkt.\"","v":"De eventuele korting contant van 2 %, in het huidig voorstel is dit € 25 is nog niet in bovenstaande splitsing verwerkt."}]
[{"$f":"'selecteer hier uw barbecue'!J76","v":""},{"$nulls":7},{"$f":"'selecteer hier uw barbecue'!H76","v":""}]
[{"$f":"'selecteer hier uw barbecue'!J77","v":""},{"$nulls":7},{"$f":"'selecteer hier uw barbecue'!H77","v":""},{"$f":"IF(J29<>\"\",\"Detail van het aperitief:\",\"\")","v":""},{"$nulls":5},{"$f":"'selecteer hier uw barbecue'!F18","v":0}]
[{"$f":"'selecteer hier uw barbecue'!J78","v":""},{"$nulls":7},{"$f":"'selecteer hier uw barbecue'!H78","v":""},{"$f":"A17","v":""},null,null,{"$f":"'selecteer hier uw barbecue'!F15","v":0},null,null,{"$f":"'selecteer hier uw barbecue'!F19","v":0}]
[{"$nulls":9},{"$f":"'selecteer hier uw barbecue'!F13","v":0},null,null,{"$f":"'selecteer hier uw barbecue'!F16","v":0},null,null,{"$f":"'selecteer hier uw barbecue'!F20","v":0}]
[{"$f":"'selecteer hier uw barbecue'!L72","v":0},{"$nulls":7},{"$f":"'selecteer hier uw barbecue'!L73","v":0},{"$f":"'selecteer hier uw barbecue'!F14","v":0},null,null,{"$f":"'selecteer hier uw barbecue'!F17","v":0},null,null,{"$f":"'selecteer hier uw barbecue'!F21","v":0}]
[{"$nulls":9},{"$f":"'selecteer hier uw barbecue'!G24","v":""}]
[{"$f":"'selecteer hier uw barbecue'!H80","v":"Huiswijn, bieren en frisdranken als forfait"},{"$nulls":8},{"$f":"'selecteer hier uw barbecue'!G13","v":0}]
[{"$f":"'selecteer hier uw barbecue'!H81","v":""},{"$nulls":8},{"$f":"'selecteer hier uw barbecue'!G14","v":0}]
[{"$f":"'selecteer hier uw barbecue'!H82","v":""},{"$nulls":8},{"$f":"'selecteer hier uw barbecue'!G15","v":0},{"$nulls":6},{"$f":"'selecteer hier uw barbecue'!F24","v":0}]
[{"$f":"'selecteer hier uw barbecue'!B62","v":"Elke gast die na de maaltijd een drankje bestelt rekent direct af aan de bar"},{"$nulls":8},{"$f":"'selecteer hier uw barbecue'!G16","v":0}]
[{"$f":"'selecteer hier uw barbecue'!K90","v":"Betaling op de dag zelf (cash of bancontact), u bekomt 2% korting op het totaal"},{"$nulls":8},{"$f":"'selecteer hier uw barbecue'!G17","v":0}]
[{"$nulls":9},{"$f":"'selecteer hier uw barbecue'!G18","v":0}]
["Vegetariërs: ",{"$f":"'selecteer hier uw barbecue'!G58","v":"nee"},null,"Speciale dieten: ",{"$f":"'selecteer hier uw barbecue'!I58","v":"nee"},null,null,"Feest met discobar: ",{"$f":"'selecteer hier uw barbecue'!G60","v":"nee"},{"$f":"'selecteer hier uw barbecue'!G19","v":0}]
["Factuur: ",{"$f":"'selecteer hier uw barbecue'!K92","v":"nee"},null,"Halal bereidingen: ",{"$f":"'selecteer hier uw barbecue'!K58","v":"nee"},null,null,{"$f":"'selecteer hier uw barbecue'!H60","v":"Allergenen: "},{"$f":"'selecteer hier uw barbecue'!I60","v":"nee"},{"$f":"'selecteer hier uw barbecue'!G20","v":0}]
[{"$f":"\"Opmerking: \" &'selecteer hier uw barbecue'!F80","v":"Opmerking: "},{"$nulls":8},{"$f":"'selecteer hier uw barbecue'!G21","v":0}]
[{"$nulls":9},{"$f":"'selecteer hier uw barbecue'!G22","v":0}]
[{"$nulls":9},{"$f":"'selecteer hier uw barbecue'!G23","v":0}]
[{"$nulls":9},{"$f":"IF(A34<>\"\",\"Detail van het dessert:\",\"\")","v":""}]
["Het juiste aantal EN de gewenste tafelschikking moet ons meegedeeld worden ten laatste op: ",{"$nulls":7},{"$f":"C7-9","v":-9},{"$f":"IF('selecteer hier uw barbecue'!$B$49=matrixen!$B$147,'selecteer hier uw barbecue'!B52& \",   \"& 'selecteer hier uw barbecue'!B53,'selecteer hier uw barbecue'!F49)","v":0}]
["Wijzigingen na deze datum van aantal en/of tafelschikking hebben prijsherzieningen tot gevolg!",{"$nulls":8},{"$f":"IF('selecteer hier uw barbecue'!$B$49=matrixen!$B$147,'selecteer hier uw barbecue'!B54& \",   \"& 'selecteer hier uw barbecue'!B55,'selecteer hier uw barbecue'!F50)","v":0}]
["Dit aantal geldt als minimum voor facturatie. Verdere verkoopsvoorwaarden op een ander werkblad. ",{"$nulls":8},{"$f":"IF('selecteer hier uw barbecue'!$B$49=matrixen!$B$147,'selecteer hier uw barbecue'!B56& \",   \"& 'selecteer hier uw barbecue'!B57,'selecteer hier uw barbecue'!F51)","v":0}]
["Vergeet ze niet te lezen.",{"$nulls":6},"Gaat u akkoord met de algemene verkoopsvoorwaarden?",{"$f":"'selecteer hier uw barbecue'!K86","v":"ja"},{"$f":"IF('selecteer hier uw barbecue'!$B$49=matrixen!$B$147,'selecteer hier uw barbecue'!B58,'selecteer hier uw barbecue'!F52)","v":0}]
["Handtekening der beide partijen voor akkoord:",{"$nulls":8},{"$f":"'selecteer hier uw barbecue'!F53","v":0}]
[null,null,"De klant",{"$nulls":4},"Het Katelijnenhof",null,{"$f":"'selecteer hier uw barbecue'!F54","v":0}]
[]
[{"$nulls":9},{"$f":"IF(OR('selecteer hier uw barbecue'!B71<>\"\",'selecteer hier uw barbecue'!B72<>\"\",'selecteer hier uw barbecue'!B73<>\"\",'selecteer hier uw barbecue'!B74<>\"\"),\"U koos volgende late night snacks:\",\"\")","v":""}]
[{"$nulls":9},{"$f":"'selecteer hier uw barbecue'!B71","v":0}]
[{"$nulls":9},{"$f":"'selecteer hier uw barbecue'!B72","v":0}]
[{"$nulls":9},{"$f":"'selecteer hier uw barbecue'!B73","v":0}]
[{"$nulls":9},{"$f":"'selecteer hier uw barbecue'!B74","v":0}]